Workbook

Sheet README
B2: With the values your entered, the CDI behavior will be the following:
H4: Where to change that?
A7: A) | B7: =CONCATENATE("Flat advance from ",LowRPM!L7," to ",Advance_curve!C7," RPM") -> Flat advance from 76 to 673 RPM | H7: cell I2 in tab "lowRPM"
A9: B) | B9: =CONCATENATE("Advance curve is freely adjustable from ",Advance_curve!C7," to ",Advance_curve!D9," RPM") -> Advance curve is freely adjustable from 673 to 7812 RPM | H9: cell B9 in tab "Advance_curve"
A11: C) | B11: =CONCATENATE("The ",Advance_curve!C7," RPM when the processor swap from [advance_curve] tab to the flat [advance_low_rpm] tab is adjustable by cell M42 in tab [Advance_curve]") -> The 673 RPM when the processor swap from [advance_curve] tab to the flat [advance_low_rpm] tab is adjustable by cell M42 in tab [Advance_curve]
B13: Eprom values to burn into the microcontroller | H13: cells O18 to 035 in tab "Advance_curve"
B15: =CONCATENATE("No spark when engine goes above ",Advance_curve!D9,"RPM - Act as absolute rev-limiter") -> No spark when engine goes above 7812RPM - Act as absolute rev-limiter | H15: cell B9 in tab "Advance_curve"
B17: Optional rev-limiter activated by JP2 jumper | H17: cell M30 in tab "Advance_curve"
B19: ONLY YELLOW CELLS ARE CHANGEABLE

Sheet Advance_curve
A1: 27/03/2021 | D1: Version 16F1827 v7.9r25c1 | K1: 79 | L1: 25 | M1: 1
B2: Proc: | C2: 16F1827
B3: Clock: | C3: 16 | D3: MHz | F3: 1 i | K3: Step
B4: Fosc/4 | C4: =C3/4 -> 4 | D4: MHz | F4: pickup position | H4: compute (us) | I4: =O28 -> 26 | K4: (us)
B5: TMR1h max | C5: =MAX(B173:B335) -> 174 | F5: 75 | G5: degrees BTDC | K5: 40 | L5: =IF(MAX(K9:K103)>254,"Some warning. Increase STEP cell k5 ?","") -> 
B6: Frq min | C6: =MIN(C174:C335) -> 11.22485632 | H6: hysteresis | I6: =O42*200 -> 200
B7: RPM min | C7: =MIN(D175:D335) -> 673 | F7: 4 i | K7: =IF(ISERROR(K9),"Load DECHEX macro","") -> 
B8: TIMER1H count | C8: Frq (Hz) | D8: RPM | E8: time for 1° (µs) | F8: Advance (degrees) | G8: Delay needed (ms) | H8: Delay nedeed (µs) | I8: Delay to wait (µs) | J8: @ map | K8: Values for the map
A9: 3 g | B9: 15 | C9: =IFERROR(1000000/(B9*256*($N$30/$C$4)),"") -> 130.2083333 | D9: =INT(60*C9*$N$25/2*$N$24) -> 7812 | E9: =((1000*1000*60)/($N$24*D9))/360 -> 21.33469875 | F9: 30 | G9: =(E9*($F$5-F9))/1000 -> 0.9600614439 | H9: =E9*($F$5-F9) -> 960.0614439 | I9: =IF($H9>$I$4+$I$6,INT($H9-$I$4-$I$6),"out of range") -> 734 | J9: 0 | K9: =IFERROR(IF($I9/$K$5>255,255,IF($I9>0.01,INT($I9/$K$5),1)),255) -> 18 | L9: =IF($I9/$K$5>255,CONCATENATE("WARNING: Timing will be more then ",F9,"°"),"") ->  | Y9: =CONCATENATE(K9," ;",ROUND(D9,0),"rpm | ",ROUND(F9,1),"° | ",,ROUND(G9,2),"ms ") -> 18 ;7812rpm | 30° | 0.96ms
A10: =IF($B10>255,CONCATENATE("ERROR: Timer1H too large"),"") ->  | B10: =IF((B9+1)<(N$44+$B$9),B9+1,"- End -") -> 16 | C10: =IFERROR(1000000/(B10*256*($N$30/$C$4)),"") -> 122.0703125 | D10: =INT(60*C10*$N$25/2*$N$24) -> 7324 | E10: 22.75623521 | F10: 30 | G10: 1.024030584 | H10: 1024.030584 | I10: =IF($H10>$I$4+$I$6,INT($H10-$I$4-$I$6),"out of range") -> 798 | J10: 1 | K10: 19 | Y10: 19 ;7324rpm | 30° | 1.02ms
B11: 17 | C11: 114.8897059 | D11: =INT(60*C11*$N$25/2*$N$24) -> 6893 | E11: 24.17911891 | F11: 30 | G11: 1.088060351 | H11: 1088.060351 | I11: =IF($H11>$I$4+$I$6,INT($H11-$I$4-$I$6),"out of range") -> 862 | J11: 2 | K11: 21 | Y11: 21 ;6893rpm | 30° | 1.09ms
B12: 18 | C12: 108.5069444 | D12: 6510 | E12: 25.6016385 | F12: 30 | G12: 1.152073733 | H12: 1152.073733 | I12: 926 | J12: 3 | K12: 23 | Y12: 23 ;6510rpm | 30° | 1.15ms
B13: 19 | C13: 102.7960526 | D13: 6167 | E13: 27.02556619 | F13: 30 | G13: 1.216150478 | H13: 1216.150478 | I13: 990 | J13: 4 | K13: 24 | Y13: 24 ;6167rpm | 30° | 1.22ms
B14: 20 | C14: 97.65625 | D14: 5859 | E14: 28.44626501 | F14: 30 | G14: 1.280081925 | H14: 1280.081925 | I14: 1054 | J14: 5 | K14: 26 | Y14: 26 ;5859rpm | 30° | 1.28ms
B15: 21 | C15: 93.00595238 | D15: 5580 | E15: 29.86857826 | F15: 29.9 | G15: 1.347072879 | H15: 1347.072879 | I15: 1121 | J15: 6 | K15: 28 | Y15: 28 ;5580rpm | 29.9° | 1.35ms
B16: 22 | C16: 88.77840909 | D16: 5326 | E16: 31.29302791 | F16: 29.8 | G16: 1.414444862 | H16: 1414.444862 | I16: 1188 | J16: 7 | K16: 29 | Y16: 29 ;5326rpm | 29.8° | 1.41ms
B17: 23 | C17: 84.91847826 | D17: 5095 | E17: 32.71180896 | F17: 29.6 | G17: 1.485116127 | H17: 1485.116127 | I17: 1259 | J17: 8 | K17: 31 | O17: EEprom data ð | P17: =CONCATENATE(EEPROM16!O1," for PIC 16F1827") -> INTEL 16HEX format for PIC 16F1827 | Y17: 31 ;5095rpm | 29.6° | 1.49ms
B18: 24 | C18: 81.38020833 | D18: 4882 | E18: 34.13901407 | F18: 29.5 | G18: 1.55332514 | H18: 1553.32514 | I18: 1327 | J18: 9 | K18: 33 | T18: MCH format | Y18: 33 ;4882rpm | 29.5° | 1.55ms
B19: 25 | C19: 78.125 | D19: 4687 | E19: 35.55934855 | F19: 29.3 | G19: 1.625062229 | H19: 1625.062229 | I19: 1399 | J19: 10 | K19: 34 | P19: =EEPROM16!O2 -> :020000040000FA | R19: =EEPROM16!Q1 -> RAW format | Y19: 34 ;4687rpm | 29.3° | 1.63ms
B20: 26 | C20: 75.12019231 | D20: 4507 | E20: 36.97951335 | F20: 29.1 | G20: 1.697359663 | H20: 1697.359663 | I20: 1471 | J20: 11 | K20: 36 | P20: =EEPROM16!O3 -> :020000040001F9 | T20: =DEC2HEX(EEPROM16!F$4,2) -> 12 | Y20: 36 ;4507rpm | 29.1° | 1.7ms
B21: 27 | C21: 72.33796296 | D21: 4340 | E21: 38.40245776 | F21: 29 | G21: 1.766513057 | H21: 1766.513057 | I21: 1540 | J21: 12 | K21: 38 | P21: =EEPROM16!O4 -> :10E00000120013001500170018001A001C001D0054 | R21: =EEPROM16!Q4 -> 12 13 15 17 18 1A 1C 1D | T21: =DEC2HEX(EEPROM16!G$4,2) -> 13 | Y21: 38 ;4340rpm | 29° | 1.77ms
B22: 28 | C22: 69.75446429 | D22: 4185 | E22: 39.82477101 | F22: 28.8 | G22: 1.839904421 | H22: 1839.904421 | I22: 1613 | J22: 13 | K22: 40 | N22: 2 i | P22: =EEPROM16!O5 -> :10E010001F00210022002400260028002A002C00D6 | R22: =EEPROM16!Q5 -> 1F 21 22 24 26 28 2A 2C | T22: =DEC2HEX(EEPROM16!H$4,2) -> 15 | Y22: 40 ;4185rpm | 28.8° | 1.84ms
B23: 29 | C23: 67.34913793 | D23: 4040 | E23: 41.25412541 | F23: 28.6 | G23: 1.914191419 | H23: 1914.191419 | I23: 1688 | J23: 14 | K23: 42 | P23: =EEPROM16!O6 -> :10E020002E0030003200340037003A003D0040003E | R23: =EEPROM16!Q6 -> 2E 30 32 34 37 3A 3D 40 | T23: =DEC2HEX(EEPROM16!I$4,2) -> 17 | Y23: 42 ;4040rpm | 28.6° | 1.91ms
B24: 30 | C24: 65.10416667 | D24: 3906 | E24: 42.66939751 | F24: 28.4 | G24: 1.988393924 | H24: 1988.393924 | I24: 1762 | J24: 15 | K24: 44 | M24: Number of cylinder | N24: 1 | P24: =EEPROM16!O7 -> :10E030004300460049004C004F0052005500580074 | R24: =EEPROM16!Q7 -> 43 46 49 4C 4F 52 55 58 | T24: =DEC2HEX(EEPROM16!J$4,2) -> 18 | Y24: 44 ;3906rpm | 28.4° | 1.99ms
B25: 31 | C25: 63.00403226 | D25: 3780 | E25: 44.09171076 | F25: 28.1 | G25: 2.067901235 | H25: 2067.901235 | I25: 1841 | J25: 16 | K25: 46 | N25: =IF(N26="4 no wasted spark",4,2) -> 2 | P25: =EEPROM16!O8 -> :10E040005B005E006100640067006A006C006F00A6 | R25: =EEPROM16!Q8 -> 5B 5E 61 64 67 6A 6C 6F | T25: =DEC2HEX(EEPROM16!K$4,2) -> 1A | Y25: 46 ;3780rpm | 28.1° | 2.07ms
B26: 32 | C26: 61.03515625 | D26: 3662 | E26: 45.51247042 | F26: 27.8 | G26: 2.148188604 | H26: 2148.188604 | I26: 1922 | J26: 17 | K26: 48 | M26: Strokes | N26: 2 | P26: =EEPROM16!O9 -> :10E050007200750077007A007D007F0082008500E5 | R26: =EEPROM16!Q9 -> 72 75 77 7A 7D 7F 82 85 | T26: =DEC2HEX(EEPROM16!L$4,2) -> 1C | Y26: 48 ;3662rpm | 27.8° | 2.15ms
B27: 33 | C27: 59.18560606 | D27: 3551 | E27: 46.93513564 | F27: 27.3 | G27: 2.23880597 | H27: 2238.80597 | I27: 2012 | J27: 18 | K27: 50 | P27: =EEPROM16!O10 -> :10E0600087008A008D008F009200940097009A002C | R27: =EEPROM16!Q10 -> 87 8A 8D 8F 92 94 97 9A | T27: =DEC2HEX(EEPROM16!M$4,2) -> 1D | Y27: 50 ;3551rpm | 27.3° | 2.24ms
B28: 34 | C28: 57.44485294 | D28: 3446 | E28: 48.3652544 | F28: 26.6 | G28: 2.340878313 | H28: 2340.878313 | I28: 2114 | J28: 19 | K28: 52 | M28: Ignition type | N28: DCCDI | O28: =IF(N28="ACCDI",42,26) -> 26 | P28: =EEPROM16!O11 -> :10E070009C009F00A100A400A600A900AB00AE0078 | R28: =EEPROM16!Q11 -> 9C 9F A1 A4 A6 A9 AB AE | T28: =DEC2HEX(EEPROM16!F$5,2) -> 1F | Y28: 52 ;3446rpm | 26.6° | 2.34ms
B29: 35 | C29: 55.80357143 | D29: 3348 | E29: 49.78096376 | F29: 25.9 | G29: 2.444245321 | H29: 2444.245321 | I29: 2218 | J29: 20 | K29: 55 | P29: =EEPROM16!O12 -> :10E08000B000B300B500B700BA00BC00BE00C100CC | R29: =EEPROM16!Q12 -> B0 B3 B5 B7 BA BC BE C1 | T29: =DEC2HEX(EEPROM16!G$5,2) -> 21 | Y29: 55 ;3348rpm | 25.9° | 2.44ms
B30: 36 | C30: 54.25347222 | D30: 3255 | E30: 51.20327701 | F30: 25 | G30: 2.56016385 | H30: 2560.16385 | I30: 2334 | J30: 21 | K30: 58 | M30: prescaler | N30: 8 | P30: =EEPROM16!O13 -> :10E09000C300C500C800CA00CC00CF00D100D30027 | R30: =EEPROM16!Q13 -> C3 C5 C8 CA CC CF D1 D3 | T30: =DEC2HEX(EEPROM16!H$5,2) -> 22 | Y30: 58 ;3255rpm | 25° | 2.56ms
B31: 37 | C31: 52.78716216 | D31: 3167 | E31: 52.62603936 | F31: 24 | G31: 2.683928008 | H31: 2683.928008 | I31: 2457 | J31: 22 | K31: 61 | P31: =EEPROM16!O14 -> :10E0A000550056005700580059005A005B005C00AC | R31: =EEPROM16!Q14 -> 55 56 57 58 59 5A 5B 5C | T31: =DEC2HEX(EEPROM16!I$5,2) -> 24 | Y31: 61 ;3167rpm | 24° | 2.68ms
B32: 38 | C32: 51.39802632 | D32: 3083 | E32: 54.05989837 | F32: 23 | G32: 2.811114715 | H32: 2811.114715 | I32: 2585 | J32: 23 | K32: 64 | M32: output width | N32: Auto | O32: us | P32: =EEPROM16!O15 -> :10E0B0005D005D005E005F00600061006200630063 | R32: =EEPROM16!Q15 -> 5D 5D 5E 5F 60 61 62 63 | T32: =DEC2HEX(EEPROM16!J$5,2) -> 26 | Y32: 64 ;3083rpm | 23° | 2.81ms
B33: 39 | C33: 50.08012821 | D33: 3004 | E33: 55.48158012 | F33: 22 | G33: 2.940523746 | H33: 2940.523746 | I33: 2714 | J33: 24 | K33: 67 | P33: =EEPROM16!O16 -> :10E0C00064006500660067006800690069006A0016 | R33: =EEPROM16!Q16 -> 64 65 66 67 68 69 69 6A | T33: =DEC2HEX(EEPROM16!K$5,2) -> 28 | Y33: 67 ;3004rpm | 22° | 2.94ms
B34: 40 | C34: 48.828125 | D34: 2929 | E34: 56.90224195 | F34: 21.2 | G34: 3.061340617 | H34: 3061.340617 | I34: 2835 | J34: 25 | K34: 70 | M34: Optional Rev Limit | N34: 3906 | O34: RPM | P34: =EEPROM16!O17 -> :10E0D0006B006C006D006E006F00700071007200CC | R34: =EEPROM16!Q17 -> 6B 6C 6D 6E 6F 70 71 72 | T34: =DEC2HEX(EEPROM16!L$5,2) -> 2A | Y34: 70 ;2929rpm | 21.2° | 3.06ms
B35: 41 | C35: 47.63719512 | D35: 2858 | E35: 58.31583858 | F35: 20.4 | G35: 3.184044787 | H35: 3184.044787 | I35: 2958 | J35: 26 | K35: 73 | P35: =EEPROM16!O18 -> :10E0E0007300740075007500760077007800790081 | R35: =EEPROM16!Q18 -> 73 74 75 75 76 77 78 79 | T35: =DEC2HEX(EEPROM16!M$5,2) -> 2C | Y35: 73 ;2858rpm | 20.4° | 3.18ms
B36: 42 | C36: 46.50297619 | D36: 2790 | E36: 59.73715651 | F36: 19.7 | G36: 3.303464755 | H36: 3303.464755 | I36: 3077 | J36: 27 | K36: 76 | M36: Nbr of teeth on rotor | N36: 1 | O36: =IF(N36=2,1,0) -> 0 | P36: =EEPROM16!O19 -> :10E0F0007A007B007C007D007E007F008000810034 | R36: =EEPROM16!Q19 -> 7A 7B 7C 7D 7E 7F 80 81 | T36: =DEC2HEX(EEPROM16!F$6,2) -> 2E | Y36: 76 ;2790rpm | 19.7° | 3.3ms
B37: 43 | C37: 45.42151163 | D37: 2725 | E37: 61.16207951 | F37: 19 | G37: 3.425076453 | H37: 3425.076453 | I37: 3199 | J37: 28 | K37: 79 | P37: =EEPROM16!O20 -> :10E1000082008200830084008500860087008800EA | R37: =EEPROM16!Q20 -> 82 82 83 84 85 86 87 88 | T37: =DEC2HEX(EEPROM16!G$6,2) -> 30 | Y37: 79 ;2725rpm | 19° | 3.43ms
B38: 44 | C38: 44.38920455 | D38: 2663 | E38: 62.58605583 | F38: 18.4 | G38: 3.54237076 | H38: 3542.37076 | I38: 3316 | J38: 29 | K38: 82 | M38: Led blink at startup | N38: yes | O38: =IF(N38="yes",1,0) -> 1 | P38: =EEPROM16!O21 -> :10E1100089008A008B008C008D008D008E008F009E | R38: =EEPROM16!Q21 -> 89 8A 8B 8C 8D 8D 8E 8F | T38: =DEC2HEX(EEPROM16!H$6,2) -> 32 | Y38: 82 ;2663rpm | 18.4° | 3.54ms
B39: 45 | C39: 43.40277778 | D39: 2604 | E39: 64.00409626 | F39: 17.8 | G39: 3.661034306 | H39: 3661.034306 | I39: 3435 | J39: 30 | K39: 85 | P39: =EEPROM16!O22 -> :10E120009000910092009300940095009600970053 | R39: =EEPROM16!Q22 -> 90 91 92 93 94 95 96 97 | T39: =DEC2HEX(EEPROM16!I$6,2) -> 34 | Y39: 85 ;2604rpm | 17.8° | 3.66ms
B40: 46 | C40: 42.45923913 | D40: 2547 | E40: 65.4364612 | F40: 17.3 | G40: 3.775683811 | H40: 3775.683811 | I40: 3549 | J40: 31 | K40: 88 | M40: First measure | N40: yes | O40: =IF(N40="yes",1,0) -> 1 | P40: =EEPROM16!O23 -> :10E13000980099009A009A009B009C009D009E0008 | R40: =EEPROM16!Q23 -> 98 99 9A 9A 9B 9C 9D 9E | T40: =DEC2HEX(EEPROM16!J$6,2) -> 37 | Y40: 88 ;2547rpm | 17.3° | 3.78ms
B41: 47 | C41: 41.55585106 | D41: 2493 | E41: =((1000*1000*60)/($N$24*D41))/360 -> 66.85385747 | F41: 16.7 | G41: =(E41*($F$5-F41))/1000 -> 3.89757989 | H41: =E41*($F$5-F41) -> 3897.57989 | I41: 3671 | J41: 32 | K41: 91 | L41: =IF($I41/$K$5>255,CONCATENATE("WARNING: Timing will be more then ",F41,"°"),"") ->  | P41: =EEPROM16!O24 -> :10E1400000000000000000000000000000000000CF | R41: =EEPROM16!Q24 -> 00 00 00 00 00 00 00 00 | T41: =DEC2HEX(EEPROM16!K$6,2) -> 3A | Y41: =CONCATENATE(K41," ;",ROUND(D41,0),"rpm | ",ROUND(F41,1),"° | ",,ROUND(G41,2),"ms ") -> 91 ;2493rpm | 16.7° | 3.9ms
A42: =IF($B42>255,CONCATENATE("ERROR: Timer1H too large"),"") ->  | B42: =IF((B41+1)<(N$44+$B$9),B41+1,"- End -") -> 48 | C42: 40.69010417 | D42: 2441 | E42: 68.27802813 | F42: 16.2 | G42: 4.014748054 | H42: 4014.748054 | I42: 3788 | J42: 33 | K42: 94 | M42: Noise Filtering | N42: yes | O42: =IF(N42="yes",1,0) -> 1 | P42: =EEPROM16!O25 -> :10E1500000000000000000000000000000000000BF | R42: =EEPROM16!Q25 -> 00 00 00 00 00 00 00 00 | T42: =DEC2HEX(EEPROM16!L$6,2) -> 3D | Y42: 94 ;2441rpm | 16.2° | 4.01ms
B43: 49 | C43: 39.85969388 | D43: 2391 | E43: 69.70584135 | F43: 15.7 | G43: 4.133556392 | H43: 4133.556392 | I43: 3907 | J43: 34 | K43: 97 | P43: =EEPROM16!O26 -> :10E1600000000000000000000000000000000000AF | R43: =EEPROM16!Q26 -> 00 00 00 00 00 00 00 00 | T43: =DEC2HEX(EEPROM16!M$6,2) -> 40 | Y43: 97 ;2391rpm | 15.7° | 4.13ms
B44: 50 | C44: 39.0625 | D44: 2343 | E44: 71.13387395 | F44: 15.3 | G44: 4.246692275 | H44: 4246.692275 | I44: 4020 | J44: 35 | K44: 100 | M44: Number of lines | N44: 160 | P44: =EEPROM16!O27 -> :10E17000000000000000000000000000000000009F | R44: =EEPROM16!Q27 -> 00 00 00 00 00 00 00 00 | T44: =DEC2HEX(EEPROM16!F7,2) -> 43 | Y44: 100 ;2343rpm | 15.3° | 4.25ms
B45: 51 | C45: 38.29656863 | D45: 2297 | E45: 72.55840952 | F45: 14.9 | G45: 4.360760412 | H45: 4360.760412 | I45: 4134 | J45: 36 | K45: 103 | M45: 5 h | P45: =EEPROM16!O28 -> :10E18000000000000000000000000000000000008F | R45: =EEPROM16!Q28 -> 00 00 00 00 00 00 00 00 | T45: =DEC2HEX(EEPROM16!G7,2) -> 46 | Y45: 103 ;2297rpm | 14.9° | 4.36ms
B46: 52 | C46: 37.56009615 | D46: 2253 | E46: 73.97544015 | F46: 14.5 | G46: 4.475514129 | H46: 4475.514129 | I46: 4249 | J46: 37 | K46: 106 | P46: =EEPROM16!O29 -> :10E19000000000000000000000000000000000007F | R46: =EEPROM16!Q29 -> 00 00 00 00 00 00 00 00 | T46: =DEC2HEX(EEPROM16!H7,2) -> 49 | Y46: 106 ;2253rpm | 14.5° | 4.48ms
B47: 53 | C47: 36.85141509 | D47: 2211 | E47: 75.3806724 | F47: 14.2 | G47: 4.583144882 | H47: 4583.144882 | I47: 4357 | J47: 38 | K47: 108 | P47: =EEPROM16!O30 -> :10E1A000000000000000000000000000000000006F | R47: =EEPROM16!Q30 -> 00 00 00 00 00 00 00 00 | T47: =DEC2HEX(EEPROM16!I7,2) -> 4C | Y47: 108 ;2211rpm | 14.2° | 4.58ms
B48: 54 | C48: 36.16898148 | D48: 2170 | E48: 76.80491551 | F48: 13.9 | G48: 4.692780338 | H48: 4692.780338 | I48: 4466 | J48: 39 | K48: 111 | P48: =EEPROM16!O31 -> :10E1B000000000000000000000000000000000005F | R48: =EEPROM16!Q31 -> 00 00 00 00 00 00 00 00 | T48: =DEC2HEX(EEPROM16!J7,2) -> 4F | Y48: 111 ;2170rpm | 13.9° | 4.69ms
B49: 55 | C49: 35.51136364 | D49: 2130 | E49: 78.24726135 | F49: 13.6 | G49: 4.804381847 | H49: 4804.381847 | I49: 4578 | J49: 40 | K49: 114 | P49: =EEPROM16!O32 -> :10E1C000000000000000000000000000000000004F | R49: =EEPROM16!Q32 -> 00 00 00 00 00 00 00 00 | T49: =DEC2HEX(EEPROM16!K7,2) -> 52 | Y49: 114 ;2130rpm | 13.6° | 4.8ms
B50: 56 | C50: 34.87723214 | D50: 2092 | E50: 79.66857871 | F50: 13.3 | G50: 4.915551307 | H50: 4915.551307 | I50: 4689 | J50: 41 | K50: 117 | P50: =EEPROM16!O33 -> :10E1D0004F001900010000000000000000000000D6 | R50: =EEPROM16!Q33 -> 4F 19 01 00 00 00 00 00 | T50: =DEC2HEX(EEPROM16!L7,2) -> 55 | Y50: 117 ;2092rpm | 13.3° | 4.92ms
B51: 57 | C51: 34.26535088 | D51: 2055 | E51: 81.10300081 | F51: 13.1 | G51: 5.02027575 | H51: 5020.27575 | I51: 4794 | J51: 42 | K51: 119 | P51: =EEPROM16!O34 -> :10E1E000A00000004B000100C80001000100000079 | R51: =EEPROM16!Q34 -> A0 00 4B 01 C8 01 01 00 | T51: =DEC2HEX(EEPROM16!M7,2) -> 58 | Y51: 119 ;2055rpm | 13.1° | 5.02ms
B52: 58 | C52: 33.67456897 | D52: 2020 | E52: 82.50825083 | F52: 12.8 | G52: 5.132013201 | H52: 5132.013201 | I52: 4906 | J52: 43 | K52: 122 | P52: =EEPROM16!O35 -> :10E1F0005C001E0063000800000028000F00AE0055 | R52: =EEPROM16!Q35 -> 5C 1E 63 08 00 28 0F AE | T52: =DEC2HEX(EEPROM16!F8,2) -> 5B | Y52: 122 ;2020rpm | 12.8° | 5.13ms
B53: 59 | C53: 33.10381356 | D53: 1986 | E53: 83.92077878 | F53: 12.6 | G53: 5.236656596 | H53: 5236.656596 | I53: 5010 | J53: 44 | K53: 125 | P53: =EEPROM16!O36 -> :00000001FF | T53: =DEC2HEX(EEPROM16!G8,2) -> 5E | Y53: 125 ;1986rpm | 12.6° | 5.24ms
B54: 60 | C54: 32.55208333 | D54: 1953 | E54: 85.33879502 | F54: 12.4 | G54: 5.342208568 | H54: 5342.208568 | I54: 5116 | J54: 45 | K54: 127 | T54: =DEC2HEX(EEPROM16!H8,2) -> 61 | Y54: 127 ;1953rpm | 12.4° | 5.34ms
B55: 61 | C55: 32.01844262 | D55: 1921 | E55: 86.76036786 | F55: 12.2 | G55: 5.448551102 | H55: 5448.551102 | I55: 5222 | J55: 46 | K55: 130 | T55: =DEC2HEX(EEPROM16!I8,2) -> 64 | Y55: 130 ;1921rpm | 12.2° | 5.45ms
B56: 62 | C56: 31.50201613 | D56: 1890 | E56: 88.18342152 | F56: 12 | G56: 5.555555556 | H56: 5555.555556 | I56: 5329 | J56: 47 | K56: 133 | T56: =DEC2HEX(EEPROM16!J8,2) -> 67 | Y56: 133 ;1890rpm | 12° | 5.56ms
B57: 63 | C57: 31.00198413 | D57: 1860 | E57: 89.60573477 | F57: 11.8 | G57: 5.663082437 | H57: 5663.082437 | I57: 5437 | J57: 48 | K57: 135 | T57: =DEC2HEX(EEPROM16!K8,2) -> 6A | Y57: 135 ;1860rpm | 11.8° | 5.66ms
B58: 64 | C58: 30.51757812 | D58: 1831 | E58: 91.02494083 | F58: 11.7 | G58: 5.761878755 | H58: 5761.878755 | I58: 5535 | J58: 49 | K58: 138 | T58: =DEC2HEX(EEPROM16!L8,2) -> 6C | Y58: 138 ;1831rpm | 11.7° | 5.76ms
B59: 65 | C59: 30.04807692 | D59: 1802 | E59: 92.48982612 | F59: 11.5 | G59: 5.873103959 | H59: 5873.103959 | I59: 5647 | J59: 50 | K59: 141 | S59: x | T59: =DEC2HEX(EEPROM16!M8,2) -> 6F | Y59: 141 ;1802rpm | 11.5° | 5.87ms
B60: 66 | C60: 29.59280303 | D60: 1775 | E60: 93.89671362 | F60: 11.4 | G60: 5.971830986 | H60: 5971.830986 | I60: 5745 | J60: 51 | K60: 143 | T60: =DEC2HEX(EEPROM16!F9,2) -> 72 | Y60: 143 ;1775rpm | 11.4° | 5.97ms
B61: 67 | C61: 29.1511194 | D61: 1749 | E61: 95.29254812 | F61: 11.3 | G61: 6.070135315 | H61: 6070.135315 | I61: 5844 | J61: 52 | K61: 146 | T61: =DEC2HEX(EEPROM16!G9,2) -> 75 | Y61: 146 ;1749rpm | 11.3° | 6.07ms
B62: 68 | C62: 28.72242647 | D62: 1723 | E62: 96.7305088 | F62: 11.1 | G62: 6.181079512 | H62: 6181.079512 | I62: 5955 | J62: 53 | K62: 148 | T62: =DEC2HEX(EEPROM16!H9,2) -> 77 | Y62: 148 ;1723rpm | 11.1° | 6.18ms
B63: 69 | C63: 28.30615942 | D63: 1698 | E63: 98.15469179 | F63: 11 | G63: 6.281900275 | H63: 6281.900275 | I63: 6055 | J63: 54 | K63: 151 | T63: =DEC2HEX(EEPROM16!I9,2) -> 7A | Y63: 151 ;1698rpm | 11° | 6.28ms
B64: 70 | C64: 27.90178571 | D64: 1674 | E64: 99.56192752 | F64: 10.8 | G64: 6.391875747 | H64: 6391.875747 | I64: 6165 | J64: 55 | K64: 154 | T64: =DEC2HEX(EEPROM16!J9,2) -> 7D | Y64: 154 ;1674rpm | 10.8° | 6.39ms
B65: 71 | C65: 27.50880282 | D65: 1650 | E65: 101.010101 | F65: 10.7 | G65: 6.494949495 | H65: 6494.949495 | I65: 6268 | J65: 56 | K65: 156 | T65: =DEC2HEX(EEPROM16!K9,2) -> 7F | Y65: 156 ;1650rpm | 10.7° | 6.49ms
B66: 72 | C66: 27.12673611 | D66: 1627 | E66: 102.438025 | F66: 10.6 | G66: 6.59700881 | H66: 6597.00881 | I66: 6371 | J66: 57 | K66: 159 | T66: =DEC2HEX(EEPROM16!L9,2) -> 82 | Y66: 159 ;1627rpm | 10.6° | 6.6ms
B67: 73 | C67: 26.75513699 | D67: 1605 | E67: 103.8421599 | F67: 10.5 | G67: 6.697819315 | H67: 6697.819315 | I67: 6471 | J67: 58 | K67: 161 | S67: x | T67: =DEC2HEX(EEPROM16!M9,2) -> 85 | Y67: 161 ;1605rpm | 10.5° | 6.7ms
B68: 74 | C68: 26.39358108 | D68: 1583 | E68: 105.2853232 | F68: 10.4 | G68: 6.80143188 | H68: 6801.43188 | I68: 6575 | J68: 59 | K68: 164 | T68: =DEC2HEX(EEPROM16!F10,2) -> 87 | Y68: 164 ;1583rpm | 10.4° | 6.8ms
B69: 75 | C69: 26.04166667 | D69: 1562 | E69: 106.7008109 | F69: 10.4 | G69: 6.892872386 | H69: 6892.872386 | I69: 6666 | J69: 60 | K69: 166 | T69: =DEC2HEX(EEPROM16!G10,2) -> 8A | Y69: 166 ;1562rpm | 10.4° | 6.89ms
B70: 76 | C70: 25.69901316 | D70: 1541 | E70: 108.1548778 | F70: 10.3 | G70: 6.997620593 | H70: 6997.620593 | I70: 6771 | J70: 61 | K70: 169 | T70: =DEC2HEX(EEPROM16!H10,2) -> 8D | Y70: 169 ;1541rpm | 10.3° | 7ms
B71: 77 | C71: 25.36525974 | D71: 1521 | E71: 109.5770327 | F71: 10.2 | G71: 7.100591716 | H71: 7100.591716 | I71: 6874 | J71: 62 | K71: 171 | T71: =DEC2HEX(EEPROM16!I10,2) -> 8F | Y71: 171 ;1521rpm | 10.2° | 7.1ms
B72: 78 | C72: 25.0400641 | D72: 1502 | E72: 110.9631602 | F72: 10.2 | G72: 7.190412783 | H72: 7190.412783 | I72: 6964 | J72: 63 | K72: 174 | T72: =DEC2HEX(EEPROM16!J10,2) -> 92 | Y72: 174 ;1502rpm | 10.2° | 7.19ms
B73: 79 | C73: 24.72310127 | D73: 1483 | E73: =((1000*1000*60)/($N$24*D73))/360 -> 112.3848056 | F73: 10.05 | G73: =(E73*($F$5-F73))/1000 -> 7.299393122 | H73: =E73*($F$5-F73) -> 7299.393122 | I73: 7073 | J73: 64 | K73: =IFERROR(IF($I73/$K$5>255,255,IF($I73>0.01,INT($I73/$K$5),1)),255) -> 176 | L73: =IF($I73/$K$5>255,CONCATENATE("WARNING: Timing will be more then ",F73,"°"),"") ->  | T73: =DEC2HEX(EEPROM16!K10,2) -> 94 | Y73: =CONCATENATE(K73," ;",ROUND(D73,0),"rpm | ",ROUND(F73,1),"° | ",,ROUND(G73,2),"ms ") -> 176 ;1483rpm | 10.1° | 7.3ms
A74: =IF($B74>255,CONCATENATE("ERROR: Timer1H too large"),"") ->  | B74: =IF((B73+1)<(N$44+$B$9),B73+1,"- End -") -> 80 | C74: =IFERROR(1000000/(B74*256*($N$30/$C$4)),"") -> 24.4140625 | D74: 1464 | E74: 113.8433515 | F74: 10.1 | G74: 7.388433515 | H74: 7388.433515 | I74: 7162 | J74: 65 | K74: 179 | T74: =DEC2HEX(EEPROM16!L10,2) -> 97 | Y74: 179 ;1464rpm | 10.1° | 7.39ms
B75: 81 | C75: 24.11265432 | D75: =INT(60*C75*$N$25/2*$N$24) -> 1446 | E75: 115.2604887 | F75: 10.05 | G75: 7.486168741 | H75: 7486.168741 | I75: =IF($H75>$I$4+$I$6,INT($H75-$I$4-$I$6),"out of range") -> 7260 | J75: 66 | K75: 181 | S75: x | T75: =DEC2HEX(EEPROM16!M10,2) -> 9A | Y75: 181 ;1446rpm | 10.1° | 7.49ms
B76: 82 | C76: 23.81859756 | D76: 1429 | E76: 116.6316772 | F76: 10 | G76: 7.581059016 | H76: 7581.059016 | I76: 7355 | J76: 67 | K76: 183 | T76: =DEC2HEX(EEPROM16!F11,2) -> 9C | Y76: 183 ;1429rpm | 10° | 7.58ms
B77: 83 | C77: 23.53162651 | D77: 1411 | E77: 118.119537 | F77: 10 | G77: 7.677769903 | H77: 7677.769903 | I77: 7451 | J77: 68 | K77: 186 | T77: =DEC2HEX(EEPROM16!G11,2) -> 9F | Y77: 186 ;1411rpm | 10° | 7.68ms
B78: 84 | C78: 23.2514881 | D78: 1395 | E78: 119.474313 | F78: 10 | G78: 7.765830346 | H78: 7765.830346 | I78: 7539 | J78: 69 | K78: 188 | T78: =DEC2HEX(EEPROM16!H11,2) -> A1 | Y78: 188 ;1395rpm | 10° | 7.77ms
B79: 85 | C79: 22.97794118 | D79: 1378 | E79: 120.9482342 | F79: 10 | G79: 7.86163522 | H79: 7861.63522 | I79: 7635 | J79: 70 | K79: 190 | T79: =DEC2HEX(EEPROM16!I11,2) -> A4 | Y79: 190 ;1378rpm | 10° | 7.86ms
B80: 86 | C80: 22.71075581 | D80: 1362 | E80: 122.3690651 | F80: 10 | G80: 7.953989232 | H80: 7953.989232 | I80: 7727 | J80: 71 | K80: 193 | T80: =DEC2HEX(EEPROM16!J11,2) -> A6 | Y80: 193 ;1362rpm | 10° | 7.95ms
B81: 87 | C81: 22.44971264 | D81: 1346 | E81: 123.8236751 | F81: 10 | G81: 8.048538881 | H81: 8048.538881 | I81: 7822 | J81: 72 | K81: 195 | T81: =DEC2HEX(EEPROM16!K11,2) -> A9 | Y81: 195 ;1346rpm | 10° | 8.05ms
B82: 88 | C82: 22.19460227 | D82: 1331 | E82: 125.2191335 | F82: 10 | G82: 8.139243676 | H82: 8139.243676 | I82: 7913 | J82: 73 | K82: 197 | T82: =DEC2HEX(EEPROM16!L11,2) -> AB | Y82: 197 ;1331rpm | 10° | 8.14ms
B83: 89 | C83: 21.94522472 | D83: 1316 | E83: 126.6464032 | F83: 10 | G83: 8.232016211 | H83: 8232.016211 | I83: 8006 | J83: 74 | K83: 200 | S83: x | T83: =DEC2HEX(EEPROM16!M11,2) -> AE | Y83: 200 ;1316rpm | 10° | 8.23ms
B84: 90 | C84: 21.70138889 | D84: 1302 | E84: 128.0081925 | F84: 10 | G84: 8.320532514 | H84: 8320.532514 | I84: 8094 | J84: 75 | K84: 202 | T84: =DEC2HEX(EEPROM16!F12,2) -> B0 | Y84: 202 ;1302rpm | 10° | 8.32ms
B85: 91 | C85: 21.46291209 | D85: 1287 | E85: 129.5001295 | F85: 10 | G85: 8.417508418 | H85: 8417.508418 | I85: 8191 | J85: 76 | K85: 204 | T85: =DEC2HEX(EEPROM16!G12,2) -> B3 | Y85: 204 ;1287rpm | 10° | 8.42ms
B86: 92 | C86: 21.22961957 | D86: 1273 | E86: 130.9243257 | F86: 10 | G86: 8.510081173 | H86: 8510.081173 | I86: 8284 | J86: 77 | K86: 207 | T86: =DEC2HEX(EEPROM16!H12,2) -> B5 | Y86: 207 ;1273rpm | 10° | 8.51ms
B87: 93 | C87: 21.00134409 | D87: 1260 | E87: 132.2751323 | F87: 10 | G87: 8.597883598 | H87: 8597.883598 | I87: 8371 | J87: 78 | K87: 209 | T87: =DEC2HEX(EEPROM16!I12,2) -> B7 | Y87: 209 ;1260rpm | 10° | 8.6ms
B88: 94 | C88: 20.77792553 | D88: 1246 | E88: 133.7613697 | F88: 10 | G88: 8.694489032 | H88: 8694.489032 | I88: 8468 | J88: 79 | K88: 211 | T88: =DEC2HEX(EEPROM16!J12,2) -> BA | Y88: 211 ;1246rpm | 10° | 8.69ms
B89: 95 | C89: 20.55921053 | D89: 1233 | E89: 135.171668 | F89: 10 | G89: 8.786158421 | H89: 8786.158421 | I89: 8560 | J89: 0 | K89: =IFERROR(IF($I89/100>255,255,IF($I89>0.01,INT($I89/100),1)),255) -> 85 | L89: =IF($I89/100>255,CONCATENATE("WARNING: Timing will be more then ",F89,"°"),"") ->  | T89: =DEC2HEX(EEPROM16!K12,2) -> BC | Y89: 85 ;1233rpm | 10° | 8.79ms
B90: 96 | C90: 20.34505208 | D90: 1220 | E90: 136.6120219 | F90: 10 | G90: 8.879781421 | H90: 8879.781421 | I90: 8653 | J90: 1 | K90: =IFERROR(IF($I90/100>255,255,IF($I90>0.01,INT($I90/100),1)),255) -> 86 | L90: =IF($I90/100>255,CONCATENATE("WARNING: Timing will be more then ",F90,"°"),"") ->  | T90: =DEC2HEX(EEPROM16!L12,2) -> BE | Y90: 86 ;1220rpm | 10° | 8.88ms
B91: 97 | C91: 20.13530928 | D91: 1208 | E91: 137.9690949 | F91: 10 | G91: 8.96799117 | H91: 8967.99117 | I91: 8741 | J91: 2 | K91: =IFERROR(IF($I91/100>255,255,IF($I91>0.01,INT($I91/100),1)),255) -> 87 | S91: x | T91: =DEC2HEX(EEPROM16!M12,2) -> C1 | Y91: 87 ;1208rpm | 10° | 8.97ms
B92: 98 | C92: 19.92984694 | D92: 1195 | E92: 139.4700139 | F92: 10 | G92: 9.065550907 | H92: 9065.550907 | I92: 8839 | J92: 3 | K92: 88 | T92: =DEC2HEX(EEPROM16!F13,2) -> C3 | Y92: 88 ;1195rpm | 10° | 9.07ms
B93: 99 | C93: 19.72853535 | D93: 1183 | E93: 140.8847563 | F93: 10 | G93: 9.157509158 | H93: 9157.509158 | I93: 8931 | J93: 4 | K93: 89 | T93: =DEC2HEX(EEPROM16!G13,2) -> C5 | Y93: 89 ;1183rpm | 10° | 9.16ms
B94: 100 | C94: 19.53125 | D94: 1171 | E94: 142.3284942 | F94: 10 | G94: 9.251352121 | H94: 9251.352121 | I94: 9025 | J94: 5 | K94: 90 | T94: =DEC2HEX(EEPROM16!H13,2) -> C8 | Y94: 90 ;1171rpm | 10° | 9.25ms
B95: 101 | C95: 19.33787129 | D95: 1160 | E95: 143.6781609 | F95: 10 | G95: 9.33908046 | H95: 9339.08046 | I95: 9113 | J95: 6 | K95: 91 | T95: =DEC2HEX(EEPROM16!I13,2) -> CA | Y95: 91 ;1160rpm | 10° | 9.34ms
B96: 102 | C96: 19.14828431 | D96: 1148 | E96: 145.1800232 | F96: 10 | G96: 9.43670151 | H96: 9436.70151 | I96: 9210 | J96: 7 | K96: 92 | T96: =DEC2HEX(EEPROM16!J13,2) -> CC | Y96: 92 ;1148rpm | 10° | 9.44ms
B97: 103 | C97: 18.96237864 | D97: 1137 | E97: 146.5845793 | F97: 10 | G97: 9.527997655 | H97: 9527.997655 | I97: 9301 | J97: 8 | K97: 93 | T97: =DEC2HEX(EEPROM16!K13,2) -> CF | Y97: 93 ;1137rpm | 10° | 9.53ms
B98: 104 | C98: 18.78004808 | D98: 1126 | E98: 148.0165779 | F98: 10 | G98: 9.621077561 | H98: 9621.077561 | I98: 9395 | J98: 9 | K98: 93 | T98: =DEC2HEX(EEPROM16!L13,2) -> D1 | Y98: 93 ;1126rpm | 10° | 9.62ms
B99: 105 | C99: 18.60119048 | D99: 1116 | E99: 149.3428913 | F99: 10 | G99: 9.707287933 | H99: 9707.287933 | I99: 9481 | J99: 10 | K99: 94 | S99: x | T99: =DEC2HEX(EEPROM16!M13,2) -> D3 | Y99: 94 ;1116rpm | 10° | 9.71ms
B100: 106 | C100: 18.42570755 | D100: 1105 | E100: 150.8295626 | F100: 10 | G100: 9.803921569 | H100: 9803.921569 | I100: 9577 | J100: 11 | K100: 95 | T100: =DEC2HEX(EEPROM16!F14,2) -> 55 | Y100: 95 ;1105rpm | 10° | 9.8ms
B101: 107 | C101: 18.25350467 | D101: 1095 | E101: 152.2070015 | F101: 10 | G101: 9.893455099 | H101: 9893.455099 | I101: 9667 | J101: 12 | K101: 96 | T101: =DEC2HEX(EEPROM16!G14,2) -> 56 | Y101: 96 ;1095rpm | 10° | 9.89ms
B102: 108 | C102: 18.08449074 | D102: 1085 | E102: 153.609831 | F102: 10 | G102: 9.984639017 | H102: 9984.639017 | I102: 9758 | J102: 13 | K102: 97 | T102: =DEC2HEX(EEPROM16!H14,2) -> 57 | Y102: 97 ;1085rpm | 10° | 9.98ms
B103: 109 | C103: 17.91857798 | D103: 1075 | E103: 155.0387597 | F103: 10 | G103: 10.07751938 | H103: 10077.51938 | I103: 9851 | J103: 14 | K103: 98 | T103: =DEC2HEX(EEPROM16!I14,2) -> 58 | Y103: 98 ;1075rpm | 10° | 10.08ms
B104: 110 | C104: 17.75568182 | D104: 1065 | E104: 156.4945227 | F104: 10 | G104: =(E104*($F$5-F104))/1000 -> 10.17214397 | H104: =E104*($F$5-F104) -> 10172.14397 | I104: 9946 | J104: 15 | K104: 99 | T104: =DEC2HEX(EEPROM16!J14,2) -> 59 | Y104: 99 ;1065rpm | 10° | 10.17ms
B105: 111 | C105: 17.59572072 | D105: 1055 | E105: 157.9778831 | F105: 10 | G105: 10.2685624 | H105: 10268.5624 | I105: 10042 | J105: 16 | K105: 100 | T105: =DEC2HEX(EEPROM16!K14,2) -> 5A
B106: =IF((B105+1)<(N$44+$B$9),B105+1,"- End -") -> 112 | C106: 17.43861607 | D106: 1046 | E106: 159.3371574 | F106: 10 | G106: 10.35691523 | H106: 10356.91523 | I106: 10130 | J106: 17 | K106: 101 | T106: =DEC2HEX(EEPROM16!L14,2) -> 5B
B107: 113 | C107: 17.28429204 | D107: 1037 | E107: 160.7200257 | F107: 10 | G107: 10.44680167 | H107: 10446.80167 | I107: 10220 | J107: 18 | K107: 102 | S107: x | T107: =DEC2HEX(EEPROM16!M14,2) -> 5C
B108: 114 | C108: 17.13267544 | D108: 1027 | E108: 162.2849724 | F108: 10 | G108: 10.54852321 | H108: 10548.52321 | I108: 10322 | J108: 19 | K108: 103 | T108: =DEC2HEX(EEPROM16!F15,2) -> 5D
B109: 115 | C109: 16.98369565 | D109: 1019 | E109: 163.5590448 | F109: 10 | G109: 10.63133791 | H109: 10631.33791 | I109: 10405 | J109: 20 | K109: 104 | T109: =DEC2HEX(EEPROM16!G15,2) -> 5D
B110: 116 | C110: 16.83728448 | D110: 1010 | E110: 165.0165017 | F110: 10 | G110: 10.72607261 | H110: 10726.07261 | I110: 10500 | J110: 21 | K110: 105 | T110: =DEC2HEX(EEPROM16!H15,2) -> 5E
B111: 117 | C111: 16.69337607 | D111: 1001 | E111: 166.5001665 | F111: 10 | G111: 10.82251082 | H111: 10822.51082 | I111: 10596 | J111: 22 | K111: 105 | T111: =DEC2HEX(EEPROM16!I15,2) -> 5F
B112: 118 | C112: 16.55190678 | D112: 993 | E112: 167.8415576 | F112: 10 | G112: 10.90970124 | H112: 10909.70124 | I112: 10683 | J112: 23 | K112: 106 | T112: =DEC2HEX(EEPROM16!J15,2) -> 60
B113: 119 | C113: 16.41281513 | D113: 984 | E113: 169.3766938 | F113: 10 | G113: 11.00948509 | H113: 11009.48509 | I113: 10783 | J113: 24 | K113: 107 | T113: =DEC2HEX(EEPROM16!K15,2) -> 61
B114: 120 | C114: 16.27604167 | D114: 976 | E114: 170.7650273 | F114: 10 | G114: 11.09972678 | H114: 11099.72678 | I114: 10873 | J114: 25 | K114: 108 | T114: =DEC2HEX(EEPROM16!L15,2) -> 62
B115: 121 | C115: 16.14152893 | D115: 968 | E115: 172.1763085 | F115: 10 | G115: 11.19146006 | H115: 11191.46006 | I115: 10965 | J115: 26 | K115: 109 | S115: x | T115: =DEC2HEX(EEPROM16!M15,2) -> 63
B116: 122 | C116: 16.00922131 | D116: 960 | E116: 173.6111111 | F116: 10 | G116: 11.28472222 | H116: 11284.72222 | I116: 11058 | J116: 27 | K116: 110 | T116: =DEC2HEX(EEPROM16!F16,2) -> 64
B117: 123 | C117: 15.87906504 | D117: 952 | E117: 175.070028 | F117: 10 | G117: 11.37955182 | H117: 11379.55182 | I117: 11153 | J117: 28 | K117: 111 | T117: =DEC2HEX(EEPROM16!G16,2) -> 65
B118: 124 | C118: 15.75100806 | D118: 945 | E118: 176.366843 | F118: 10 | G118: 11.4638448 | H118: 11463.8448 | I118: 11237 | J118: 29 | K118: 112 | T118: =DEC2HEX(EEPROM16!H16,2) -> 66
B119: 125 | C119: 15.625 | D119: 937 | E119: 177.8726432 | F119: 10 | G119: 11.56172181 | H119: 11561.72181 | I119: 11335 | J119: 30 | K119: 113 | T119: =DEC2HEX(EEPROM16!I16,2) -> 67
B120: 126 | C120: 15.50099206 | D120: 930 | E120: 179.2114695 | F120: 10 | G120: 11.64874552 | H120: 11648.74552 | I120: 11422 | J120: 31 | K120: 114 | T120: =DEC2HEX(EEPROM16!J16,2) -> 68
B121: 127 | C121: 15.37893701 | D121: 922 | E121: 180.7664497 | F121: 10 | G121: 11.74981923 | H121: 11749.81923 | I121: 11523 | J121: 32 | K121: 115 | T121: =DEC2HEX(EEPROM16!K16,2) -> 69
B122: 128 | C122: 15.25878906 | D122: 915 | E122: 182.1493625 | F122: 10 | G122: 11.83970856 | H122: 11839.70856 | I122: 11613 | J122: 33 | K122: 116 | T122: =DEC2HEX(EEPROM16!L16,2) -> 69
B123: 129 | C123: 15.14050388 | D123: 908 | E123: 183.5535977 | F123: 10 | G123: 11.93098385 | H123: 11930.98385 | I123: 11704 | J123: 34 | K123: 117 | S123: x | T123: =DEC2HEX(EEPROM16!M16,2) -> 6A
B124: 130 | C124: 15.02403846 | D124: 901 | E124: 184.9796522 | F124: 10 | G124: 12.0236774 | H124: 12023.6774 | I124: 11797 | J124: 35 | K124: 117 | T124: =DEC2HEX(EEPROM16!F17,2) -> 6B
B125: 131 | C125: 14.90935115 | D125: 894 | E125: 186.4280388 | F125: 10 | G125: 12.11782252 | H125: 12117.82252 | I125: 11891 | J125: 36 | K125: 118 | T125: =DEC2HEX(EEPROM16!G17,2) -> 6C
B126: 132 | C126: 14.79640152 | D126: 887 | E126: 187.899286 | F126: 10 | G126: 12.21345359 | H126: 12213.45359 | I126: 11987 | J126: 37 | K126: 119 | T126: =DEC2HEX(EEPROM16!H17,2) -> 6D
B127: 133 | C127: 14.68515038 | D127: 881 | E127: 189.1789633 | F127: 10 | G127: 12.29663261 | H127: 12296.63261 | I127: 12070 | J127: 38 | K127: 120 | T127: =DEC2HEX(EEPROM16!I17,2) -> 6E
B128: 134 | C128: 14.5755597 | D128: 874 | E128: 190.6941266 | F128: 10 | G128: =(E128*($F$5-F128))/1000 -> 12.39511823 | H128: =E128*($F$5-F128) -> 12395.11823 | I128: 12169 | J128: 39 | K128: 121 | T128: =DEC2HEX(EEPROM16!J17,2) -> 6F
B129: 135 | C129: 14.46759259 | D129: 868 | E129: 192.0122888 | F129: 10 | G129: 12.48079877 | H129: 12480.79877 | I129: 12254 | J129: 40 | K129: 122 | T129: =DEC2HEX(EEPROM16!K17,2) -> 70
B130: 136 | C130: 14.36121324 | D130: 861 | E130: 193.5733643 | F130: 10 | G130: 12.58226868 | H130: 12582.26868 | I130: 12356 | J130: 41 | K130: 123 | T130: =DEC2HEX(EEPROM16!L17,2) -> 71
B131: 137 | C131: 14.25638686 | D131: 855 | E131: 194.9317739 | F131: 10 | G131: 12.6705653 | H131: 12670.5653 | I131: 12444 | J131: 42 | K131: 124 | S131: x | T131: =DEC2HEX(EEPROM16!M17,2) -> 72
B132: 138 | C132: 14.15307971 | D132: 849 | E132: 196.3093836 | F132: 10 | G132: 12.76010993 | H132: 12760.10993 | I132: 12534 | J132: 43 | K132: 125 | T132: =DEC2HEX(EEPROM16!F18,2) -> 73
B133: 139 | C133: 14.05125899 | D133: 843 | E133: 197.7066034 | F133: 10 | G133: 12.85092922 | H133: 12850.92922 | I133: 12624 | J133: 44 | K133: 126 | T133: =DEC2HEX(EEPROM16!G18,2) -> 74
B134: 140 | C134: 13.95089286 | D134: 837 | E134: 199.123855 | F134: 10 | G134: 12.94305058 | H134: 12943.05058 | I134: 12717 | J134: 45 | K134: 127 | T134: =DEC2HEX(EEPROM16!H18,2) -> 75
B135: 141 | C135: 13.85195035 | D135: 831 | E135: 200.5615724 | F135: 10 | G135: 13.03650221 | H135: 13036.50221 | I135: 12810 | J135: 46 | K135: 128 | T135: =DEC2HEX(EEPROM16!I18,2) -> 75
B136: 142 | C136: 13.75440141 | D136: 825 | E136: 202.020202 | F136: 10 | G136: 13.13131313 | H136: 13131.31313 | I136: 12905 | J136: 47 | K136: 129 | T136: =DEC2HEX(EEPROM16!J18,2) -> 76
B137: 143 | C137: 13.65821678 | D137: 819 | E137: =((1000*1000*60)/($N$24*D137))/360 -> 203.5002035 | F137: 10 | G137: 13.22751323 | H137: 13227.51323 | I137: 13001 | J137: 48 | K137: 130 | T137: =DEC2HEX(EEPROM16!K18,2) -> 77
A138: =IF($B138>255,CONCATENATE("ERROR: Timer1H too large"),"") ->  | B138: =IF((B137+1)<(N$44+$B$9),B137+1,"- End -") -> 144 | C138: =IFERROR(1000000/(B138*256*($N$30/$C$4)),"") -> 13.56336806 | D138: 813 | E138: 205.00205 | F138: 10 | G138: 13.32513325 | H138: 13325.13325 | I138: 13099 | J138: 49 | K138: 130 | T138: =DEC2HEX(EEPROM16!L18,2) -> 78
B139: 145 | C139: 13.46982759 | D139: =INT(60*C139*$N$25/2*$N$24) -> 808 | E139: 206.2706271 | F139: 10 | G139: 13.40759076 | H139: 13407.59076 | I139: =IF($H139>$I$4+$I$6,INT($H139-$I$4-$I$6),"out of range") -> 13181 | J139: 50 | K139: 131 | S139: x | T139: =DEC2HEX(EEPROM16!M18,2) -> 79
B140: 146 | C140: 13.37756849 | D140: 802 | E140: 207.8137988 | F140: 10 | G140: 13.50789692 | H140: 13507.89692 | I140: 13281 | J140: 51 | K140: 132 | T140: =DEC2HEX(EEPROM16!F19,2) -> 7A
B141: 147 | C141: 13.28656463 | D141: 797 | E141: 209.117524 | F141: 10 | G141: 13.59263906 | H141: 13592.63906 | I141: 13366 | J141: 52 | K141: 133 | T141: =DEC2HEX(EEPROM16!G19,2) -> 7B
B142: 148 | C142: 13.19679054 | D142: 791 | E142: 210.7037505 | F142: 10 | G142: 13.69574378 | H142: 13695.74378 | I142: 13469 | J142: 53 | K142: 134 | T142: =DEC2HEX(EEPROM16!H19,2) -> 7C
B143: 149 | C143: 13.10822148 | D143: 786 | E143: 212.0441052 | F143: 10 | G143: 13.78286684 | H143: 13782.86684 | I143: 13556 | J143: 54 | K143: 135 | T143: =DEC2HEX(EEPROM16!I19,2) -> 7D
B144: 150 | C144: 13.02083333 | D144: 781 | E144: 213.4016219 | F144: 10 | G144: 13.87110542 | H144: 13871.10542 | I144: 13645 | J144: 55 | K144: 136 | T144: =DEC2HEX(EEPROM16!J19,2) -> 7E
B145: 151 | C145: 12.93460265 | D145: 776 | E145: 214.7766323 | F145: 10 | G145: 13.9604811 | H145: 13960.4811 | I145: 13734 | J145: 56 | K145: 137 | T145: =DEC2HEX(EEPROM16!K19,2) -> 7F
B146: 152 | C146: 12.84950658 | D146: 770 | E146: 216.4502165 | F146: 10 | G146: 14.06926407 | H146: 14069.26407 | I146: 13843 | J146: 57 | K146: 138 | T146: =DEC2HEX(EEPROM16!L19,2) -> 80
B147: 153 | C147: 12.76552288 | D147: 765 | E147: 217.8649237 | F147: 10 | G147: 14.16122004 | H147: 14161.22004 | I147: 13935 | J147: 58 | K147: 139 | S147: x | T147: =DEC2HEX(EEPROM16!M19,2) -> 81
B148: 154 | C148: 12.68262987 | D148: 760 | E148: 219.2982456 | F148: 10 | G148: 14.25438596 | H148: 14254.38596 | I148: 14028 | J148: 59 | K148: 140 | T148: =DEC2HEX(EEPROM16!F20,2) -> 82
B149: 155 | C149: 12.60080645 | D149: 756 | E149: 220.4585538 | F149: 10 | G149: 14.329806 | H149: 14329.806 | I149: 14103 | J149: 60 | K149: 141 | T149: =DEC2HEX(EEPROM16!G20,2) -> 82
B150: 156 | C150: 12.52003205 | D150: 751 | E150: 221.9263205 | F150: 10 | G150: 14.42521083 | H150: 14425.21083 | I150: 14199 | J150: 61 | K150: 141 | T150: =DEC2HEX(EEPROM16!H20,2) -> 83
B151: 157 | C151: 12.44028662 | D151: 746 | E151: 223.4137623 | F151: 10 | G151: 14.52189455 | H151: 14521.89455 | I151: 14295 | J151: 62 | K151: 142 | T151: =DEC2HEX(EEPROM16!I20,2) -> 84
B152: 158 | C152: 12.36155063 | D152: 741 | E152: 224.9212776 | F152: 10 | G152: 14.61988304 | H152: 14619.88304 | I152: 14393 | J152: 63 | K152: 143 | T152: =DEC2HEX(EEPROM16!J20,2) -> 85
B153: 159 | C153: 12.28380503 | D153: 737 | E153: 226.1420172 | F153: 10 | G153: =(E153*($F$5-F153))/1000 -> 14.69923112 | H153: =E153*($F$5-F153) -> 14699.23112 | I153: 14473 | J153: 64 | K153: 144 | T153: =DEC2HEX(EEPROM16!K20,2) -> 86
B154: 160 | C154: 12.20703125 | D154: 732 | E154: 227.6867031 | F154: 10 | G154: 14.7996357 | H154: 14799.6357 | I154: 14573 | J154: 65 | K154: 145 | L154: =IF($I154/100>255,CONCATENATE("WARNING: Timing will be more then ",F154,"°"),"") ->  | T154: =DEC2HEX(EEPROM16!L20,2) -> 87
B155: 161 | C155: 12.13121118 | D155: 727 | E155: 229.2526364 | F155: 10 | G155: 14.90142137 | H155: 14901.42137 | I155: 14675 | J155: 66 | K155: =IFERROR(IF($I155/100>255,255,IF($I155>0.01,INT($I155/100),1)),255) -> 146 | S155: x | T155: =DEC2HEX(EEPROM16!M20,2) -> 88
B156: 162 | C156: 12.05632716 | D156: 723 | E156: 230.5209774 | F156: 10 | G156: 14.98386353 | H156: 14983.86353 | I156: 14757 | J156: 67 | K156: 147 | T156: =DEC2HEX(EEPROM16!F21,2) -> 89
B157: 163 | C157: 11.98236196 | D157: 718 | E157: 232.1262767 | F157: 10 | G157: 15.08820799 | H157: 15088.20799 | I157: 14862 | J157: 68 | K157: 148 | T157: =DEC2HEX(EEPROM16!G21,2) -> 8A
B158: 164 | C158: 11.90929878 | D158: 714 | E158: 233.426704 | F158: 10 | G158: 15.17273576 | H158: 15172.73576 | I158: 14946 | J158: 69 | K158: 149 | T158: =DEC2HEX(EEPROM16!H21,2) -> 8B
B159: 165 | C159: 11.83712121 | D159: 710 | E159: 234.741784 | F159: 10 | G159: 15.25821596 | H159: 15258.21596 | I159: 15032 | J159: 70 | K159: 150 | T159: =DEC2HEX(EEPROM16!I21,2) -> 8C
B160: 166 | C160: 11.76581325 | D160: 705 | E160: 236.4066194 | F160: 10 | G160: 15.36643026 | H160: 15366.43026 | I160: 15140 | J160: 71 | K160: 151 | T160: =DEC2HEX(EEPROM16!J21,2) -> 8D
B161: 167 | C161: 11.69535928 | D161: 701 | E161: 237.7555873 | F161: 10 | G161: 15.45411317 | H161: 15454.11317 | I161: 15228 | J161: 72 | K161: 152 | T161: =DEC2HEX(EEPROM16!K21,2) -> 8D
B162: 168 | C162: 11.62574405 | D162: 697 | E162: 239.1200383 | F162: 10 | G162: 15.54280249 | H162: 15542.80249 | I162: 15316 | J162: 73 | K162: 153 | T162: =DEC2HEX(EEPROM16!L21,2) -> 8E
B163: 169 | C163: 11.55695266 | D163: 693 | E163: 240.5002405 | F163: 10 | G163: 15.63251563 | H163: 15632.51563 | I163: 15406 | J163: 74 | K163: 154 | S163: x | T163: =DEC2HEX(EEPROM16!M21,2) -> 8F
B164: 170 | C164: 11.48897059 | D164: 689 | E164: 241.8964683 | F164: 10 | G164: 15.72327044 | H164: 15723.27044 | I164: 15497 | J164: 75 | K164: 154 | T164: =DEC2HEX(EEPROM16!F22,2) -> 90
B165: 171 | C165: 11.42178363 | D165: 685 | E165: 243.3090024 | F165: 10 | G165: 15.81508516 | H165: 15815.08516 | I165: 15589 | J165: 76 | K165: 155 | T165: =DEC2HEX(EEPROM16!G22,2) -> 91
B166: 172 | C166: 11.35537791 | D166: 681 | E166: 244.7381302 | F166: 10 | G166: 15.90797846 | H166: 15907.97846 | I166: 15681 | J166: 77 | K166: 156 | T166: =DEC2HEX(EEPROM16!H22,2) -> 92
B167: 173 | C167: 11.28973988 | D167: 677 | E167: 246.1841457 | F167: 10 | G167: 16.00196947 | H167: 16001.96947 | I167: 15775 | J167: 78 | K167: 157 | T167: =DEC2HEX(EEPROM16!I22,2) -> 93
B168: 174 | C168: 11.22485632 | D168: 673 | E168: 247.6473502 | F168: 10 | G168: 16.09707776 | H168: 16097.07776 | I168: 15871 | J168: 79 | K168: 158 | T168: =DEC2HEX(EEPROM16!J22,2) -> 94
A169: ERROR: Timer1H too large | B169: - End - | F169: 10 | J169: 80 | K169: 255 | T169: =DEC2HEX(EEPROM16!K22,2) -> 95
T170: =DEC2HEX(EEPROM16!L22,2) -> 96
S171: x | T171: =DEC2HEX(EEPROM16!M22,2) -> 97
T172: =DEC2HEX(EEPROM16!F23,2) -> 98
T173: =DEC2HEX(EEPROM16!G23,2) -> 99
T174: =DEC2HEX(EEPROM16!H23,2) -> 9A
B175: =IFERROR(B9,"") -> 15 | C175: 130.2083333 | D175: 7812 | T175: =DEC2HEX(EEPROM16!I23,2) -> 9A
B176: 16 | C176: 122.0703125 | D176: 7324 | T176: =DEC2HEX(EEPROM16!J23,2) -> 9B
B177: 17 | C177: 114.8897059 | D177: 6893 | T177: =DEC2HEX(EEPROM16!K23,2) -> 9C
B178: 18 | C178: 108.5069444 | D178: 6510 | T178: =DEC2HEX(EEPROM16!L23,2) -> 9D
B179: 19 | C179: 102.7960526 | D179: 6167 | S179: x | T179: =DEC2HEX(EEPROM16!M23,2) -> 9E
B180: 20 | C180: 97.65625 | D180: 5859 | T180: =DEC2HEX(EEPROM16!F24,2) -> 00
B181: 21 | C181: 93.00595238 | D181: 5580 | T181: =DEC2HEX(EEPROM16!G24,2) -> 00
B182: 22 | C182: 88.77840909 | D182: 5326 | T182: =DEC2HEX(EEPROM16!H24,2) -> 00
B183: 23 | C183: 84.91847826 | D183: 5095 | T183: =DEC2HEX(EEPROM16!I24,2) -> 00
B184: 24 | C184: 81.38020833 | D184: 4882 | T184: =DEC2HEX(EEPROM16!J24,2) -> 00
B185: 25 | C185: 78.125 | D185: 4687 | T185: =DEC2HEX(EEPROM16!K24,2) -> 00
B186: 26 | C186: 75.12019231 | D186: 4507 | T186: =DEC2HEX(EEPROM16!L24,2) -> 00
B187: 27 | C187: 72.33796296 | D187: 4340 | S187: x | T187: =DEC2HEX(EEPROM16!M24,2) -> 00
B188: 28 | C188: 69.75446429 | D188: 4185 | T188: =DEC2HEX(EEPROM16!F25,2) -> 00
B189: 29 | C189: 67.34913793 | D189: 4040 | T189: =DEC2HEX(EEPROM16!G25,2) -> 00
B190: 30 | C190: 65.10416667 | D190: 3906 | T190: =DEC2HEX(EEPROM16!H25,2) -> 00
B191: 31 | C191: 63.00403226 | D191: 3780 | T191: =DEC2HEX(EEPROM16!I25,2) -> 00
B192: 32 | C192: 61.03515625 | D192: 3662 | T192: =DEC2HEX(EEPROM16!J25,2) -> 00
B193: 33 | C193: 59.18560606 | D193: 3551 | T193: =DEC2HEX(EEPROM16!K25,2) -> 00
B194: 34 | C194: 57.44485294 | D194: 3446 | T194: =DEC2HEX(EEPROM16!L25,2) -> 00
B195: =IFERROR(B29,"") -> 35 | C195: 55.80357143 | D195: 3348 | S195: x | T195: =DEC2HEX(EEPROM16!M25,2) -> 00
B196: 36 | C196: 54.25347222 | D196: 3255 | T196: =DEC2HEX(EEPROM16!F26,2) -> 00
B197: 37 | C197: 52.78716216 | D197: 3167 | T197: =DEC2HEX(EEPROM16!G26,2) -> 00
B198: 38 | C198: 51.39802632 | D198: 3083 | T198: =DEC2HEX(EEPROM16!H26,2) -> 00
B199: 39 | C199: 50.08012821 | D199: 3004 | T199: =DEC2HEX(EEPROM16!I26,2) -> 00
B200: 40 | C200: 48.828125 | D200: 2929 | T200: =DEC2HEX(EEPROM16!J26,2) -> 00
... 135 more rows

Sheet LowRPM
B2: Advance at low RPM | D2: =CONCATENATE("from ",L7," to") -> from 76 to | E2: =CONCATENATE(ROUNDDOWN(Advance_curve!C7,0)," RPM") -> 673 RPM | H2: VLRPM | I2: 92 | J2: us
D4: Cylinder(s) = | E4: =Advance_curve!N24 -> 1 | H4: Fosc/4 | I4: =Advance_curve!C4 -> 4 | J4: MHz | K4: TMR1deb max | L4: =48/I5 -> 6
D5: Strokes = | E5: =Advance_curve!N25 -> 2 | F5: STK | H5: Prescaler | I5: =Advance_curve!N30 -> 8 | K5: durée debords max | L5: =L4*I7 -> 780.3 | M5: ms
D6: Pkp position = | E6: =Advance_curve!$F$5 -> 75 | F6: ° BTDC | H6: periode TMR1L | I6: =I5/I4 -> 2 | J6: ms | K6: Frq mini | L6: =1000/L5 -> 1.281558375 | M6: Hz | N6: Frq | P6: periode | Q6: periode | R6: 1° | S6: Timer1 | T6: TMR1h | U6: TMR1deb | V6: TMR1rest | W6: Delay | X6: Delay needed | Y6: Delay | Z6: advance
D7: RPM limit = | E7: =IF(Advance_curve!N30=1,"336",IF(Advance_curve!N30=2,"168",IF(Advance_curve!N30=4,"84",IF(Advance_curve!N30=8,"42","False")))) -> 42 | F7: RPM | H7: débord TMR1H | I7: =255*255*I6/1000 -> 130.05 | J7: ms | K7: RPM mini | L7: =INT(60*L6*E5/2*E4) -> 76 | M7: RPM | N7: Hz | O7: RPM | P7: µs | Q7: ms | R7: us | W7: µs | X7: µs | Y7: degres | Z7: degres BTDC
N8: 1 | O8: =IF(N8="End"," ",(N8*60*$E$5)/(2*$E$4)) -> 60 | P8: =1000000/N8 -> 1000000 | Q8: =P8/1000 -> 1000 | R8: =((1000*1000*60)/($E$4*O8))/360 -> 2777.777778 | S8: =IF(N8="End"," ",INT(P8*Advance_curve!$C$4)/$I$5) -> 500000 | T8: =IF(N8="End"," ",S8/255) -> 1960.784314 | U8: =INT(T8/255) -> 7 | V8: =T8-U8*255 -> 175.7843137 | W8: =IF(U8<6,(U8*255*$I$2)+(V8*($I$2+0)),$I$2*(5*255+V8)) -> 133472.1569 | X8: =W8 -> 133472.1569 | Y8: =X8/R8 -> 48.04997647 | Z8: =$E$6-Y8 -> 26.95002353
H9: temps calcul | I9: 22 | J9: µs | N9: 1.5 | O9: =IF(N9="End"," ",(N9*60*$E$5)/(2*$E$4)) -> 90 | P9: =1000000/N9 -> 666666.6667 | Q9: =P9/1000 -> 666.6666667 | R9: =((1000*1000*60)/($E$4*O9))/360 -> 1851.851852 | S9: =IF(N9="End"," ",INT(P9*Advance_curve!$C$4)/$I$5) -> 333333.25 | T9: =IF(N9="End"," ",S9/255) -> 1307.189216 | U9: =INT(T9/255) -> 5 | V9: =T9-U9*255 -> 32.18921569 | W9: 120261.4078 | X9: =W9 -> 120261.4078 | Y9: =X9/R9 -> 64.94116024 | Z9: =$E$6-Y9 -> 10.05883976
H10: hysteresis | I10: =Advance_curve!I6 -> 200 | J10: µs | N10: =IF(N8<Advance_curve!C$6,N8+1,"End") -> 2 | O10: 120 | P10: 500000 | Q10: 500 | R10: =((1000*1000*60)/($E$4*O10))/360 -> 1388.888889 | S10: =IF(N10="End"," ",INT(P10*Advance_curve!$C$4)/$I$5) -> 250000 | T10: 980.3921569 | U10: =INT(T10/255) -> 3 | V10: =T10-U10*255 -> 215.3921569 | W10: 90196.07843 | X10: 90196.07843 | Y10: =X10/R10 -> 64.94117647 | Z10: =$E$6-Y10 -> 10.05882353
N11: =IF(N10<Advance_curve!$C$6,N10+1,"End") -> 3 | O11: 180 | P11: 333333.3333 | Q11: 333.3333333 | R11: 925.9259259 | S11: =IF(N11="End"," ",INT(P11*Advance_curve!$C$4)/$I$5) -> 166666.625 | T11: 653.5946078 | U11: 2 | V11: 143.5946078 | W11: 60130.70392 | X11: 60130.70392 | Y11: =X11/R11 -> 64.94116024 | Z11: =IF($U11<5,$E$6-Y11,"0") -> 10.05883976
N12: =IF(N11<Advance_curve!$C$6,N11+1,"End") -> 4 | O12: 240 | P12: 250000 | Q12: 250 | R12: 694.4444444 | S12: =IF(N12="End"," ",INT(P12*Advance_curve!$C$4)/$I$5) -> 125000 | T12: 490.1960784 | U12: 1 | V12: 235.1960784 | W12: 45098.03922 | X12: 45098.03922 | Y12: 64.94117647 | Z12: 10.05882353
N13: =IF(N12<Advance_curve!$C$6,N12+1,"End") -> 5 | O13: 300 | P13: 200000 | Q13: 200 | R13: 555.5555556 | S13: =IF(N13="End"," ",INT(P13*Advance_curve!$C$4)/$I$5) -> 100000 | T13: 392.1568627 | U13: 1 | V13: 137.1568627 | W13: 36078.43137 | X13: 36078.43137 | Y13: 64.94117647 | Z13: 10.05882353
N14: =IF(N13<Advance_curve!$C$6,N13+1,"End") -> 6 | O14: 360 | P14: 166666.6667 | Q14: 166.6666667 | R14: 462.962963 | S14: =IF(N14="End"," ",INT(P14*Advance_curve!$C$4)/$I$5) -> 83333.25 | T14: 326.7970588 | U14: 1 | V14: 71.79705882 | W14: 30065.32941 | X14: 30065.32941 | Y14: 64.94111153 | Z14: 10.05888847
N15: =IF(N14<Advance_curve!$C$6,N14+1,"End") -> 7 | O15: 420 | P15: 142857.1429 | Q15: 142.8571429 | R15: 396.8253968 | S15: =IF(N15="End"," ",INT(P15*Advance_curve!$C$4)/$I$5) -> 71428.5 | T15: 280.1117647 | U15: 1 | V15: 25.11176471 | W15: 25770.28235 | X15: 25770.28235 | Y15: 64.94111153 | Z15: 10.05888847
N16: =IF(N15<Advance_curve!$C$6,N15+1,"End") -> 8 | O16: 480 | P16: 125000 | Q16: 125 | R16: 347.2222222 | S16: =IF(N16="End"," ",INT(P16*Advance_curve!$C$4)/$I$5) -> 62500 | T16: 245.0980392 | U16: 0 | V16: 245.0980392 | W16: 22549.01961 | X16: 22549.01961 | Y16: 64.94117647 | Z16: 10.05882353
N17: =IF(N16<Advance_curve!$C$6,N16+1,"End") -> 9 | O17: 540 | P17: 111111.1111 | Q17: 111.1111111 | R17: 308.6419753 | S17: =IF(N17="End"," ",INT(P17*Advance_curve!$C$4)/$I$5) -> 55555.5 | T17: 217.8647059 | U17: 0 | V17: 217.8647059 | W17: 20043.55294 | X17: 20043.55294 | Y17: 64.94111153 | Z17: 10.05888847
N18: =IF(N17<Advance_curve!$C$6,N17+1,"End") -> 10 | O18: 600 | P18: 100000 | Q18: 100 | R18: 277.7777778 | S18: =IF(N18="End"," ",INT(P18*Advance_curve!$C$4)/$I$5) -> 50000 | T18: 196.0784314 | U18: 0 | V18: 196.0784314 | W18: 18039.21569 | X18: 18039.21569 | Y18: 64.94117647 | Z18: 10.05882353
N19: =IF(N18<Advance_curve!$C$6,N18+1,"End") -> 11 | O19: 660 | P19: 90909.09091 | Q19: 90.90909091 | R19: 252.5252525 | S19: =IF(N19="End"," ",INT(P19*Advance_curve!$C$4)/$I$5) -> 45454.5 | T19: 178.2529412 | U19: 0 | V19: 178.2529412 | W19: 16399.27059 | X19: 16399.27059 | Y19: 64.94111153 | Z19: 10.05888847
N20: =IF(N19<Advance_curve!$C$6,N19+1,"End") -> 12 | O20: 720 | P20: 83333.33333 | Q20: 83.33333333 | R20: 231.4814815 | S20: =IF(N20="End"," ",INT(P20*Advance_curve!$C$4)/$I$5) -> 41666.625 | T20: 163.3985294 | U20: =INT(T20/255) -> 0 | V20: =T20-U20*255 -> 163.3985294 | W20: 15032.66471 | X20: 15032.66471 | Y20: 64.94111153 | Z20: =IF($T20<255,Advance_curve!$F$5-Y20,"0") -> 10.05888847
N21: =IF(N20<Advance_curve!$C$6,N20+1,"End") -> End | S21: =IF(N21="End"," ",INT(P21*Advance_curve!$C$4)/$I$5) ->  | Z21: =IF($T21<255,Advance_curve!$F$5-Y21,"0") -> 0
N22: =IF(N21<Advance_curve!$C$6,N21+1,"End") -> End | S22: =IF(N22="End"," ",INT(P22*Advance_curve!$C$4)/$I$5) ->  | Z22: =IF($T22<255,Advance_curve!$F$5-Y22,"0") -> 0
N23: =IF(N22<Advance_curve!$C$6,N22+1,"End") -> End | S23: =IF(N23="End"," ",INT(P23*Advance_curve!$C$4)/$I$5) ->  | Z23: =IF($T23<255,Advance_curve!$F$5-Y23,"0") -> 0
N24: =IF(N23<Advance_curve!$C$6,N23+1,"End") -> End | S24: =IF(N24="End"," ",INT(P24*Advance_curve!$C$4)/$I$5) ->  | Z24: =IF($T24<255,Advance_curve!$F$5-Y24,"0") -> 0
N25: =IF(N24<Advance_curve!$C$6,N24+1,"End") -> End | S25: =IF(N25="End"," ",INT(P25*Advance_curve!$C$4)/$I$5) ->  | Z25: =IF($T25<255,Advance_curve!$F$5-Y25,"0") -> 0
N26: =IF(N25<Advance_curve!$C$6,N25+1,"End") -> End | S26: =IF(N26="End"," ",INT(P26*Advance_curve!$C$4)/$I$5) ->  | T26: =IF(N26="End"," ",S26/255) ->  | Z26: =IF($T26<255,Advance_curve!$F$5-Y26,"0") -> 0
H30: Délai proportionnel aux nbr de débords.
H32: Avec Clock 16MHz:
H33: PRESC=1 => TMR1H s'incrémente de 1 en 64us et déborde en 16ms
H34: PRESC=2 => TMR1H s'incrémente de 1 en 128us et déborde en 32ms <===
H35: PRESC=4 => TMR1H s'incrémente de 1 en 256us et déborde en 65ms
H36: PRESC=8 => TMR1H s'incrémente de 1 en 512us et déborde en 131ms

Sheet EEPROM16
O1: INTEL 16HEX format | Q1: RAW format
O2: :020000040000FA | X2: Hash
A3: Bytes in Row | B3: Address MSB (hex) | C3: Address LSB (hex) | D3: Address Start (MSB) | E3: Address Start (LSB) | F3: +0 | G3: +1 | H3: +2 | I3: +3 | J3: +4 | K3: +5 | L3: +6 | M3: +7 | O3: :020000040001F9 | S3: sum[dec] | T3: sum[hex] | U3: LSB | V3: two's complement [dec] | W3: two's complement +1 | X3: cksum
A4: 16 | B4: E0 | C4: =DEC2HEX(E4,2) -> 00 | D4: 224 | E4: 0 | F4: =ROUND(Advance_curve!$K9,0) -> 18 | G4: =ROUND(Advance_curve!$K10,0) -> 19 | H4: =ROUND(Advance_curve!$K11,0) -> 21 | I4: =ROUND(Advance_curve!$K12,0) -> 23 | J4: =ROUND(Advance_curve!$K13,0) -> 24 | K4: =ROUND(Advance_curve!$K14,0) -> 26 | L4: =ROUND(Advance_curve!$K15,0) -> 28 | M4: =ROUND(Advance_curve!$K16,0) -> 29 | O4: =":"&DEC2HEX(A4,2)&B4&C4&"00"&DEC2HEX(F4,2)&"00"&DEC2HEX(G4,2)&"00"&DEC2HEX(H4,2)&"00"&DEC2HEX(I4,2)&"00"&DEC2HEX(J4,2)&"00"&DEC2HEX(K4,2)&"00"&DEC2HEX(L4,2)&"00"&DEC2HEX(M4,2)&"00"&X4 -> :10E00000120013001500170018001A001C001D0054 | Q4: =DEC2HEX(F4,2)&" "&DEC2HEX(G4,2)&" "&DEC2HEX(H4,2)&" "&DEC2HEX(I4,2)&" "&DEC2HEX(J4,2)&" "&DEC2HEX(K4,2)&" "&DEC2HEX(L4,2)&" "&DEC2HEX(M4,2) -> 12 13 15 17 18 1A 1C 1D | S4: =SUM(A4,D4:M4) -> 428 | T4: =DEC2HEX(S4) -> 1AC | U4: =RIGHT(T4,2) -> AC | V4: =255-HEX2DEC(U4) -> 83 | W4: =V4+1 -> 84 | X4: =IF(W4=256,"00",DEC2HEX(W4,2)) -> 54
A5: 16 | B5: E0 | C5: 10 | D5: 224 | E5: 16 | F5: =ROUND(Advance_curve!$K17,0) -> 31 | G5: =ROUND(Advance_curve!$K18,0) -> 33 | H5: =ROUND(Advance_curve!$K19,0) -> 34 | I5: =ROUND(Advance_curve!$K20,0) -> 36 | J5: =ROUND(Advance_curve!$K21,0) -> 38 | K5: =ROUND(Advance_curve!$K22,0) -> 40 | L5: =ROUND(Advance_curve!$K23,0) -> 42 | M5: =ROUND(Advance_curve!K24,0) -> 44 | O5: :10E010001F00210022002400260028002A002C00D6 | Q5: 1F 21 22 24 26 28 2A 2C | S5: 554 | T5: 22A | U5: 2A | V5: 213 | W5: 214 | X5: D6
A6: 16 | B6: E0 | C6: 20 | D6: 224 | E6: 32 | F6: =ROUND(Advance_curve!$K25,0) -> 46 | G6: =ROUND(Advance_curve!$K26,0) -> 48 | H6: =ROUND(Advance_curve!$K27,0) -> 50 | I6: =ROUND(Advance_curve!$K28,0) -> 52 | J6: =ROUND(Advance_curve!$K29,0) -> 55 | K6: =ROUND(Advance_curve!$K30,0) -> 58 | L6: =ROUND(Advance_curve!$K31,0) -> 61 | M6: =ROUND(Advance_curve!$K32,0) -> 64 | O6: :10E020002E0030003200340037003A003D0040003E | Q6: 2E 30 32 34 37 3A 3D 40 | S6: 706 | T6: 2C2 | U6: C2 | V6: 61 | W6: 62 | X6: 3E
A7: 16 | B7: E0 | C7: 30 | D7: 224 | E7: 48 | F7: =ROUND(Advance_curve!$K33,0) -> 67 | G7: =ROUND(Advance_curve!$K34,0) -> 70 | H7: =ROUND(Advance_curve!$K35,0) -> 73 | I7: =ROUND(Advance_curve!$K36,0) -> 76 | J7: =ROUND(Advance_curve!$K37,0) -> 79 | K7: =ROUND(Advance_curve!$K38,0) -> 82 | L7: =ROUND(Advance_curve!$K39,0) -> 85 | M7: =ROUND(Advance_curve!$K40,0) -> 88 | O7: :10E030004300460049004C004F0052005500580074 | Q7: 43 46 49 4C 4F 52 55 58 | S7: 908 | T7: 38C | U7: 8C | V7: 115 | W7: 116 | X7: 74
A8: 16 | B8: E0 | C8: 40 | D8: 224 | E8: 64 | F8: =ROUND(Advance_curve!$K41,0) -> 91 | G8: =ROUND(Advance_curve!$K42,0) -> 94 | H8: =ROUND(Advance_curve!$K43,0) -> 97 | I8: =ROUND(Advance_curve!$K44,0) -> 100 | J8: =ROUND(Advance_curve!$K45,0) -> 103 | K8: =ROUND(Advance_curve!$K46,0) -> 106 | L8: =ROUND(Advance_curve!$K47,0) -> 108 | M8: =ROUND(Advance_curve!$K48,0) -> 111 | O8: :10E040005B005E006100640067006A006C006F00A6 | Q8: 5B 5E 61 64 67 6A 6C 6F | S8: 1114 | T8: 45A | U8: 5A | V8: 165 | W8: 166 | X8: A6
A9: 16 | B9: E0 | C9: 50 | D9: 224 | E9: 80 | F9: =ROUND(Advance_curve!$K49,0) -> 114 | G9: =ROUND(Advance_curve!$K50,0) -> 117 | H9: =ROUND(Advance_curve!$K51,0) -> 119 | I9: =ROUND(Advance_curve!$K52,0) -> 122 | J9: =ROUND(Advance_curve!$K53,0) -> 125 | K9: =ROUND(Advance_curve!$K54,0) -> 127 | L9: =ROUND(Advance_curve!$K55,0) -> 130 | M9: =ROUND(Advance_curve!$K56,0) -> 133 | O9: :10E050007200750077007A007D007F0082008500E5 | Q9: 72 75 77 7A 7D 7F 82 85 | S9: 1307 | T9: 51B | U9: 1B | V9: 228 | W9: 229 | X9: E5
A10: 16 | B10: E0 | C10: 60 | D10: 224 | E10: 96 | F10: =ROUND(Advance_curve!$K57,0) -> 135 | G10: =ROUND(Advance_curve!$K58,0) -> 138 | H10: =ROUND(Advance_curve!$K59,0) -> 141 | I10: =ROUND(Advance_curve!$K60,0) -> 143 | J10: =ROUND(Advance_curve!$K61,0) -> 146 | K10: =ROUND(Advance_curve!$K62,0) -> 148 | L10: =ROUND(Advance_curve!$K63,0) -> 151 | M10: =ROUND(Advance_curve!$K64,0) -> 154 | O10: :10E0600087008A008D008F009200940097009A002C | Q10: 87 8A 8D 8F 92 94 97 9A | S10: 1492 | T10: 5D4 | U10: D4 | V10: 43 | W10: 44 | X10: 2C
A11: 16 | B11: E0 | C11: 70 | D11: 224 | E11: 112 | F11: =ROUND(Advance_curve!$K65,0) -> 156 | G11: =ROUND(Advance_curve!$K66,0) -> 159 | H11: =ROUND(Advance_curve!$K67,0) -> 161 | I11: =ROUND(Advance_curve!$K68,0) -> 164 | J11: =ROUND(Advance_curve!$K69,0) -> 166 | K11: =ROUND(Advance_curve!$K70,0) -> 169 | L11: =ROUND(Advance_curve!$K71,0) -> 171 | M11: =ROUND(Advance_curve!$K72,0) -> 174 | O11: :10E070009C009F00A100A400A600A900AB00AE0078 | Q11: 9C 9F A1 A4 A6 A9 AB AE | S11: 1672 | T11: 688 | U11: 88 | V11: 119 | W11: 120 | X11: 78
A12: 16 | B12: E0 | C12: 80 | D12: 224 | E12: 128 | F12: =ROUND(Advance_curve!$K73,0) -> 176 | G12: =ROUND(Advance_curve!$K74,0) -> 179 | H12: =ROUND(Advance_curve!$K75,0) -> 181 | I12: =ROUND(Advance_curve!$K76,0) -> 183 | J12: =ROUND(Advance_curve!$K77,0) -> 186 | K12: =ROUND(Advance_curve!$K78,0) -> 188 | L12: =ROUND(Advance_curve!$K79,0) -> 190 | M12: =ROUND(Advance_curve!$K80,0) -> 193 | O12: :10E08000B000B300B500B700BA00BC00BE00C100CC | Q12: B0 B3 B5 B7 BA BC BE C1 | S12: 1844 | T12: 734 | U12: 34 | V12: 203 | W12: 204 | X12: CC
A13: 16 | B13: E0 | C13: 90 | D13: 224 | E13: 144 | F13: =ROUND(Advance_curve!$K81,0) -> 195 | G13: =ROUND(Advance_curve!$K82,0) -> 197 | H13: =ROUND(Advance_curve!$K83,0) -> 200 | I13: =ROUND(Advance_curve!$K84,0) -> 202 | J13: =ROUND(Advance_curve!$K85,0) -> 204 | K13: =ROUND(Advance_curve!$K86,0) -> 207 | L13: =ROUND(Advance_curve!$K87,0) -> 209 | M13: =ROUND(Advance_curve!$K88,0) -> 211 | O13: :10E09000C300C500C800CA00CC00CF00D100D30027 | Q13: C3 C5 C8 CA CC CF D1 D3 | S13: 2009 | T13: 7D9 | U13: D9 | V13: 38 | W13: 39 | X13: 27
A14: 16 | B14: E0 | C14: A0 | D14: 224 | E14: 160 | F14: =ROUND(Advance_curve!$K89,0) -> 85 | G14: =ROUND(Advance_curve!$K90,0) -> 86 | H14: =ROUND(Advance_curve!$K91,0) -> 87 | I14: =ROUND(Advance_curve!$K92,0) -> 88 | J14: =ROUND(Advance_curve!$K93,0) -> 89 | K14: =ROUND(Advance_curve!$K94,0) -> 90 | L14: =ROUND(Advance_curve!$K95,0) -> 91 | M14: =ROUND(Advance_curve!$K96,0) -> 92 | O14: :10E0A000550056005700580059005A005B005C00AC | Q14: 55 56 57 58 59 5A 5B 5C | S14: 1108 | T14: 454 | U14: 54 | V14: 171 | W14: 172 | X14: AC
A15: 16 | B15: E0 | C15: B0 | D15: 224 | E15: 176 | F15: =ROUND(Advance_curve!K97,0) -> 93 | G15: =ROUND(Advance_curve!K98,0) -> 93 | H15: =ROUND(Advance_curve!K99,0) -> 94 | I15: =ROUND(Advance_curve!K100,0) -> 95 | J15: =ROUND(Advance_curve!K101,0) -> 96 | K15: =ROUND(Advance_curve!K102,0) -> 97 | L15: =ROUND(Advance_curve!K103,0) -> 98 | M15: =ROUND(Advance_curve!K104,0) -> 99 | O15: :10E0B0005D005D005E005F00600061006200630063 | Q15: 5D 5D 5E 5F 60 61 62 63 | S15: 1181 | T15: 49D | U15: 9D | V15: 98 | W15: 99 | X15: 63
A16: 16 | B16: E0 | C16: C0 | D16: 224 | E16: 192 | F16: =ROUND(Advance_curve!$K105,0) -> 100 | G16: =ROUND(Advance_curve!$K106,0) -> 101 | H16: =ROUND(Advance_curve!$K107,0) -> 102 | I16: =ROUND(Advance_curve!$K108,0) -> 103 | J16: =ROUND(Advance_curve!$K109,0) -> 104 | K16: =ROUND(Advance_curve!$K110,0) -> 105 | L16: =ROUND(Advance_curve!$K111,0) -> 105 | M16: =ROUND(Advance_curve!$K112,0) -> 106 | O16: :10E0C00064006500660067006800690069006A0016 | Q16: 64 65 66 67 68 69 69 6A | S16: 1258 | T16: 4EA | U16: EA | V16: 21 | W16: 22 | X16: 16
A17: 16 | B17: E0 | C17: D0 | D17: 224 | E17: 208 | F17: =ROUND(Advance_curve!$K113,0) -> 107 | G17: =ROUND(Advance_curve!$K114,0) -> 108 | H17: =ROUND(Advance_curve!$K115,0) -> 109 | I17: =ROUND(Advance_curve!$K116,0) -> 110 | J17: =ROUND(Advance_curve!$K117,0) -> 111 | K17: =ROUND(Advance_curve!$K118,0) -> 112 | L17: =ROUND(Advance_curve!$K119,0) -> 113 | M17: =ROUND(Advance_curve!$K120,0) -> 114 | O17: =":"&DEC2HEX(A17,2)&B17&C17&"00"&DEC2HEX(F17,2)&"00"&DEC2HEX(G17,2)&"00"&DEC2HEX(H17,2)&"00"&DEC2HEX(I17,2)&"00"&DEC2HEX(J17,2)&"00"&DEC2HEX(K17,2)&"00"&DEC2HEX(L17,2)&"00"&DEC2HEX(M17,2)&"00"&X17 -> :10E0D0006B006C006D006E006F00700071007200CC | Q17: 6B 6C 6D 6E 6F 70 71 72 | S17: 1332 | T17: 534 | U17: 34 | V17: 203 | W17: 204 | X17: CC
A18: 16 | B18: E0 | C18: E0 | D18: 224 | E18: 224 | F18: =ROUND(Advance_curve!$K121,0) -> 115 | G18: =ROUND(Advance_curve!$K122,0) -> 116 | H18: =ROUND(Advance_curve!$K123,0) -> 117 | I18: =ROUND(Advance_curve!$K124,0) -> 117 | J18: =ROUND(Advance_curve!$K125,0) -> 118 | K18: =ROUND(Advance_curve!$K126,0) -> 119 | L18: =ROUND(Advance_curve!$K127,0) -> 120 | M18: =ROUND(Advance_curve!$K128,0) -> 121 | O18: :10E0E0007300740075007500760077007800790081 | Q18: 73 74 75 75 76 77 78 79 | S18: 1407 | T18: 57F | U18: 7F | V18: 128 | W18: 129 | X18: 81
A19: 16 | B19: E0 | C19: F0 | D19: 224 | E19: 240 | F19: =ROUND(Advance_curve!$K129,0) -> 122 | G19: =ROUND(Advance_curve!$K130,0) -> 123 | H19: =ROUND(Advance_curve!$K131,0) -> 124 | I19: =ROUND(Advance_curve!$K132,0) -> 125 | J19: =ROUND(Advance_curve!$K133,0) -> 126 | K19: =ROUND(Advance_curve!$K134,0) -> 127 | L19: =ROUND(Advance_curve!$K135,0) -> 128 | M19: =ROUND(Advance_curve!$K136,0) -> 129 | O19: :10E0F0007A007B007C007D007E007F008000810034 | Q19: 7A 7B 7C 7D 7E 7F 80 81 | S19: 1484 | T19: 5CC | U19: CC | V19: 51 | W19: 52 | X19: 34
A20: 16 | B20: E1 | C20: =DEC2HEX(E20,2) -> 00 | D20: 225 | E20: 0 | F20: =ROUND(Advance_curve!$K137,0) -> 130 | G20: =ROUND(Advance_curve!$K138,0) -> 130 | H20: =ROUND(Advance_curve!$K139,0) -> 131 | I20: =ROUND(Advance_curve!$K140,0) -> 132 | J20: =ROUND(Advance_curve!$K141,0) -> 133 | K20: =ROUND(Advance_curve!$K142,0) -> 134 | L20: =ROUND(Advance_curve!$K143,0) -> 135 | M20: =ROUND(Advance_curve!$K144,0) -> 136 | O20: :10E1000082008200830084008500860087008800EA | Q20: 82 82 83 84 85 86 87 88 | S20: 1302 | T20: 516 | U20: 16 | V20: 233 | W20: 234 | X20: EA
A21: 16 | B21: E1 | C21: 10 | D21: 225 | E21: 16 | F21: =ROUND(Advance_curve!$K145,0) -> 137 | G21: =ROUND(Advance_curve!$K146,0) -> 138 | H21: =ROUND(Advance_curve!$K147,0) -> 139 | I21: =ROUND(Advance_curve!$K148,0) -> 140 | J21: =ROUND(Advance_curve!$K149,0) -> 141 | K21: =ROUND(Advance_curve!$K150,0) -> 141 | L21: =ROUND(Advance_curve!$K151,0) -> 142 | M21: =ROUND(Advance_curve!$K152,0) -> 143 | O21: :10E1100089008A008B008C008D008D008E008F009E | Q21: 89 8A 8B 8C 8D 8D 8E 8F | S21: 1378 | T21: 562 | U21: 62 | V21: 157 | W21: 158 | X21: 9E
A22: 16 | B22: E1 | C22: 20 | D22: 225 | E22: 32 | F22: =ROUND(Advance_curve!$K153,0) -> 144 | G22: =ROUND(Advance_curve!$K154,0) -> 145 | H22: =ROUND(Advance_curve!$K155,0) -> 146 | I22: =ROUND(Advance_curve!$K156,0) -> 147 | J22: =ROUND(Advance_curve!$K157,0) -> 148 | K22: =ROUND(Advance_curve!$K158,0) -> 149 | L22: =ROUND(Advance_curve!$K159,0) -> 150 | M22: =ROUND(Advance_curve!$K160,0) -> 151 | O22: :10E120009000910092009300940095009600970053 | Q22: 90 91 92 93 94 95 96 97 | S22: 1453 | T22: 5AD | U22: AD | V22: 82 | W22: 83 | X22: 53
A23: 16 | B23: E1 | C23: 30 | D23: 225 | E23: 48 | F23: =ROUND(Advance_curve!$K161,0) -> 152 | G23: =ROUND(Advance_curve!$K162,0) -> 153 | H23: =ROUND(Advance_curve!$K163,0) -> 154 | I23: =ROUND(Advance_curve!$K164,0) -> 154 | J23: =ROUND(Advance_curve!$K165,0) -> 155 | K23: =ROUND(Advance_curve!$K166,0) -> 156 | L23: =ROUND(Advance_curve!$K167,0) -> 157 | M23: =ROUND(Advance_curve!$K168,0) -> 158 | O23: :10E13000980099009A009A009B009C009D009E0008 | Q23: 98 99 9A 9A 9B 9C 9D 9E | S23: 1528 | T23: 5F8 | U23: F8 | V23: 7 | W23: 8 | X23: 08
A24: 16 | B24: E1 | C24: 40 | D24: 225 | E24: 64 | F24: 0 | G24: 0 | H24: 0 | I24: 0 | J24: 0 | K24: 0 | L24: 0 | M24: 0 | O24: :10E1400000000000000000000000000000000000CF | Q24: 00 00 00 00 00 00 00 00 | S24: 305 | T24: 131 | U24: 31 | V24: 206 | W24: 207 | X24: CF
A25: 16 | B25: E1 | C25: 50 | D25: 225 | E25: 80 | F25: 0 | G25: 0 | H25: 0 | I25: 0 | J25: 0 | K25: 0 | L25: 0 | M25: 0 | O25: :10E1500000000000000000000000000000000000BF | Q25: 00 00 00 00 00 00 00 00 | S25: 321 | T25: 141 | U25: 41 | V25: 190 | W25: 191 | X25: BF
A26: 16 | B26: E1 | C26: 60 | D26: 225 | E26: 96 | F26: 0 | G26: 0 | H26: 0 | I26: 0 | J26: 0 | K26: 0 | L26: 0 | M26: 0 | O26: :10E1600000000000000000000000000000000000AF | Q26: 00 00 00 00 00 00 00 00 | S26: 337 | T26: 151 | U26: 51 | V26: 174 | W26: 175 | X26: AF
A27: 16 | B27: E1 | C27: 70 | D27: 225 | E27: 112 | F27: 0 | G27: 0 | H27: 0 | I27: 0 | J27: 0 | K27: 0 | L27: 0 | M27: 0 | O27: :10E17000000000000000000000000000000000009F | Q27: 00 00 00 00 00 00 00 00 | S27: 353 | T27: 161 | U27: 61 | V27: 158 | W27: 159 | X27: 9F
A28: 16 | B28: E1 | C28: 80 | D28: 225 | E28: 128 | F28: 0 | G28: 0 | H28: 0 | I28: 0 | J28: 0 | K28: 0 | L28: 0 | M28: 0 | O28: :10E18000000000000000000000000000000000008F | Q28: 00 00 00 00 00 00 00 00 | S28: 369 | T28: 171 | U28: 71 | V28: 142 | W28: 143 | X28: 8F
A29: 16 | B29: E1 | C29: 90 | D29: 225 | E29: 144 | F29: 0 | G29: 0 | H29: 0 | I29: 0 | J29: 0 | K29: 0 | L29: 0 | M29: 0 | O29: :10E19000000000000000000000000000000000007F | Q29: 00 00 00 00 00 00 00 00 | S29: 385 | T29: 181 | U29: 81 | V29: 126 | W29: 127 | X29: 7F
A30: 16 | B30: E1 | C30: A0 | D30: 225 | E30: 160 | F30: 0 | G30: 0 | H30: 0 | I30: 0 | J30: 0 | K30: 0 | L30: 0 | M30: 0 | O30: :10E1A000000000000000000000000000000000006F | Q30: 00 00 00 00 00 00 00 00 | S30: 401 | T30: 191 | U30: 91 | V30: 110 | W30: 111 | X30: 6F
A31: 16 | B31: E1 | C31: B0 | D31: 225 | E31: 176 | F31: 0 | G31: 0 | H31: 0 | I31: 0 | J31: 0 | K31: 0 | L31: 0 | M31: 0 | O31: :10E1B000000000000000000000000000000000005F | Q31: 00 00 00 00 00 00 00 00 | S31: 417 | T31: 1A1 | U31: A1 | V31: 94 | W31: 95 | X31: 5F
A32: 16 | B32: E1 | C32: C0 | D32: 225 | E32: 192 | F32: 0 | G32: 0 | H32: 0 | I32: 0 | J32: 0 | K32: 0 | L32: 0 | M32: 0 | O32: :10E1C000000000000000000000000000000000004F | Q32: 00 00 00 00 00 00 00 00 | S32: 433 | T32: 1B1 | U32: B1 | V32: 78 | W32: 79 | X32: 4F
A33: 16 | B33: E1 | C33: D0 | D33: 225 | E33: 208 | F33: =Advance_curve!K1 -> 79 | G33: =Advance_curve!L1 -> 25 | H33: =Advance_curve!M1 -> 1 | I33: 0 | J33: 0 | K33: 0 | L33: 0 | M33: 0 | O33: :10E1D0004F001900010000000000000000000000D6 | Q33: 4F 19 01 00 00 00 00 00 | S33: 554 | T33: 22A | U33: 2A | V33: 213 | W33: 214 | X33: D6
A34: 16 | B34: E1 | C34: E0 | D34: 225 | E34: 224 | F34: =Advance_curve!N44 -> 160 | G34: 0 | H34: =Advance_curve!F5 -> 75 | I34: =Advance_curve!O42 -> 1 | J34: 200 | K34: =Advance_curve!O40 -> 1 | L34: =Advance_curve!O38 -> 1 | M34: =Advance_curve!O36 -> 0 | O34: :10E1E000A00000004B000100C80001000100000079 | Q34: A0 00 4B 01 C8 01 01 00 | S34: 903 | T34: 387 | U34: 87 | V34: 120 | W34: 121 | X34: 79
A35: 16 | B35: E1 | C35: F0 | D35: 225 | E35: 240 | F35: =LowRPM!I2 -> 92 | G35: =INT((Advance_curve!C4/Advance_curve!N30)*(60*1000000)/Advance_curve!N34/256) -> 30 | H35: =IF(Advance_curve!N32="Auto",99,Advance_curve!N32/500) -> 99 | I35: =Advance_curve!N30 -> 8 | J35: 0 | K35: =Advance_curve!K5 -> 40 | L35: =Advance_curve!B9 -> 15 | M35: =Advance_curve!C5 -> 174 | O35: :10E1F0005C001E0063000800000028000F00AE0055 | Q35: 5C 1E 63 08 00 28 0F AE | S35: 939 | T35: 3AB | U35: AB | V35: 84 | W35: 85 | X35: 55
F36: End of File | O36: :00000001FF
O40: The checksum value is the two's complement of the least significant byte (LSB) of the sum of all decoded byte values in the record that precede the checksum.
O41: It is computed by summing the decoded byte values, extracting the LSB of the sum, and calculating the two's complement of the LSB
O42: (e.g., by inverting its bits and adding one).
O43: For example, in the case of the record :0300300002337A1E, the sum of the decoded byte values is 03 + 00 + 30 + 00 + 02 + 33 + 7A = E2.
O44: The two's complement of E2 is 1E, which is the checksum appearing at the end of the record.
O46: Pour effectuer un complément à 2 il faut :
O47: - Inverser tout les bits (1 en 0, 0 en 1) (ou faire 255-chiffre) pour faire le complement a 1
O48: puis ajouter 1 au résultat
O49: Ex: DECHEX(255-SOMME(B3:K3)+1) = DECHEX(255+1-SOMME(B3:K3)) = DECHEX(256-SOMME(B3:K3))
O50: le complement a 2 de 0 est egal a 0
O51: Si 2 derniers chiffres de h100 = 00: cksum OK
O53: Méthode 1 (1er onglet)
O54: C'est la méthode bestiale. On convertit le nombre (positif) en base 2, puis on inverse les bits et ensuite on ajoute 1 avec propagation d'une éventuelle retenue.
O56: Méthode 2 (2ème onglet)
O57: On utilise la formule suivante pour le complément à 2: Si X est le nombre négatif à convertir, la conversion de (2^16)-|X| en base 2 donne le résultat.
B73: :10E000001B
B74: :BBAAAATTHHHHHH.....HHHHCC
B75: BB est le nombre d'octets de données dans la ligne (en hexadécimal)
B76: AAAA est l'adresse absolue (ou relative) du début de la lign
B77: TT est le champ spécifiant le type
B78: HH...HHHH est le champ des données | J78: 00, données, contient les données et l'adresse 16 bit.
B79: CC est l'octet de checksum. C'est le complément à deux de la somme des valeurs binaires des octets de tous les autres champs. (Les calculs sont faits sur 8 bits, en ignorant les retenues.)
B81: Pour vérifier la validité des données, il suffit de faire la somme de tous les octets représentés, à partir des deux-points jusqu'à la fin de ligne (checksum inclus: BB+AA+AA+TT+HH+...+CC): le résultat attendu est 0 (modulo 256).

Sheet Accuracy
A1: CYLINDRE: | B1: 1 | C1: cyl
A2: STROKES | B2: 2 | C2: stk
A3: ACCURACY | B3: 3.4 | C3: us
A5: RPM | B5: ERROR
A6: 0 | B6: 0
A7: 1000 | B7: =$B$3/((1000*(60*$B$2)/(2*$B$1*$A7))/0.36) -> 0.0204
A8: 2000 | B8: 0.0408
A9: 3000 | B9: 0.0612
A10: 4000 | B10: 0.0816
A11: 5000 | B11: 0.102
A12: 6000 | B12: 0.1224
A13: 7000 | B13: 0.1428
A14: 8000 | B14: 0.1632
A15: 9000 | B15: 0.1836
A16: 10000 | B16: 0.204

Sheet formules
E1: TEMPS | F1: CYLINDRE | G1: RPM | H1: FREQUENCE | I1: PERIODE | J1: PERIODE | K1: 1° | M1: durée = | N1: degrés | O1: relatif pickup
E2: Nbr | F2: Nbr | G2: tr/mn | H2: Hz | I2: ms | J2: pour 2cyl 2tps | K2: ms | L2: us | M2: us | O2: =Advance_curve!F5 -> 75 | W2: 4 stk:
E3: 2 | F3: 1 | G3: 5000 | H3: =(2*$F$3*$G$3)/(60*$E$3) -> 83.33333333 | I3: =1000*(60*$E$3)/(2*$F$3*$G$3) -> 12 | J3: =1000*60/$G$3 -> 12 | K3: =I3/360 -> 0.03333333333 | L3: =I3/0.36 -> 33.33333333 | M3: 64000 | N3: =M3/L3 -> 1920 | O3: =Advance_curve!F5-N3 -> -1845 | W3: 1 cyl | X3: 1/2 spark every rotation | Y3: 720°
I4: =1000*I3 -> 12000 | W4: 2 cyl | X4: 1 spark every rotation | Y4: 360°
G5: =(60*$H$5*$E$3)/(2*$F$3) -> 120 | H5: 2 | I5: =1000*(60*$E$3)/(2*$F$3*$G$5) -> 500 | J5: =1000*60/$G$5 -> 500 | K5: =I5/360 -> 1.388888889 | L5: =I5/0.36 -> 1388.888889 | N5: FRQ = (2*CYL*RPM) / (60*TEMPS) | W5: 3 cyl | X5: 1,5 spark every rotation | Y5: 240°
N6: RPM = (60*FRQ*TEMPS) / ( 2*CYL) | W6: 4 cyl | X6: 2 sparks every rotation | Y6: 180°
G7: Délai | H7: => | I7: Délai | J7: Avance | N7: 1degré = (1000*1000*60*CYL) / ( 2*TEMPS*RPM)/360 | W7: 5 cyl | X7: 2,5 sparks every rotation | Y7: 144°
G8: us | I8: ° | J8: ° | N8: RPM= 60*1000000/ TMR1*256*presc/Fosc | W8: 6 cyl | X8: 3 sparks every rotation | Y8: 120°
G9: 9600 | I9: =G9/L3 -> 288 | J9: =Advance_curve!F5-I9 -> -213 | N9: TMR1=(PER*Fosc)/ presc*255 | W9: 10 cyl | X9: 5 sparks every rotation | Y9: 72°
N10: FRQ = 1/TMR1H = 1/TMR1H * (255 * PRES/Fosc) = 1*1000000 / TMR1H* (255 * PRES/Fosc) | W10: 12 cyl | X10: 6 sparks every rotation | Y10: 60°
A11: 2.5 | G11: Frequence | H11: => | I11: RPM | J11: PERIODE
G12: 100 | H12: Hz | I12: =60*G12*$E$3/2*$F$3 -> 6000 | J12: =1000/G12 -> 10 | K12: ms
G14: Periode | H14: => | I14: RPM | J14: FRQ | S14: 2 stk = 1 sprk per rev.
G15: 2 | H15: ms | I15: =60*(1000/G15)*$E$3/(2*$F$3) -> 30000 | J15: =1000/G15 -> 500 | K15: Hz | S15: 4 stk = 1 sprk per 2 rev.
S16: At 1000 rpm, 2stk = 1000 sparks/mn = 1000/60sec = 16Hz
B17: Clock | C17: Fosc | D17: Multiplier | E17: Delay | F17: Prescaler | G17: Nombre de | H17: Nombre | I17: Fréquence | J17: Régime | K17: Période | M17: TIMER1 | N17: Delay of: | P17: =IF(Q20>0,"Avance","RETARD") -> RETARD | S17: At 1000 rpm, 4stk = 500 sparks/mn = 500/60sec = 8Hz
G18: Cylindres | H18: de temps | M18: high | P18: BTDC | T18: Then to multiply but the number of cylinders
B19: MHz | C19: MHz | E19: us | I19: Hz | J19: tr/mn | K19: ms | L19: µs | M19: =IF(M20>127,"erreur","") ->  | N19: µs | O19: ms | P19: ms | Q19: degrees | T19: 2 stk x 1cyl = 16Hz
B20: =Advance_curve!C3 -> 16 | C20: =Advance_curve!C4 -> 4 | D20: 8 | E20: 20 | F20: =Advance_curve!N30 -> 8 | G20: =F3 -> 1 | H20: =E3 -> 2 | I20: =H3 -> 83.33333333 | J20: =(60*I20*H20)/(2*G20) -> 5000 | K20: =1000/I20 -> 12 | L20: =1000000/I20 -> 12000 | M20: =INT(L20*C20/($F$20*255)) -> 23 | N20: =($E$20*$M$20*$D$20) -> 3680 | O20: =N20/1000 -> 3.68 | P20: =(K20/360)*Advance_curve!F5-O20 -> -1.18 | Q20: =(360/K20)*P20 -> -35.4 | T20: 2 stk x 2cyl = 30hz
D24: http://syskb.com/creer-une-liste-deroulante-dans-excel-2010/ | P24: DUREE | S24: F = (P/2)(N/60) => F=P*N/120
P25: us | S25: N: rpm
D26: TIMER 0 | E26: 8bits | J26: Timer1 | K26: 16bits = 65535 max | P26: 300
D27: Quartz a 4MHz | J27: Quartz a 4MHz | S27: Tension produite:
D28: 4 cycles d'horloge par operation: Fosc/4 or 4MHz/4 = 1MHz | J28: 4 cycles d'horloge par operation: Fosc/4 or 4MHz/4 = 1MHz | S28: Erms=(K * ω * N * θ ) / √2
D29: - Prescaler sur 256 dans le registre T0CON | J29: - Prescaler sur 8 dans le registre T1CON | S29: Erms=4,44 * K * F * N * θ
D30: - period of the frequency input to Timer 0 : | J30: - period of the frequency input to Timer 1 : (toutes les 8us , TMR1 avance d'un cran)
D31: 1/(1MHz/256) = 256us | J31: 1/(1MHz/8) = 8us | S31: Courant produit:
D32: This is the period of time for each count in Timer 0 i.e. | J32: This is the period of time for each count in Timer 1 i.e. | S32: I = (θ * N) / L
D33: 256 * 256us = 65536us = 65.636ms = 15.26Hz | J33: 65536 * 8us = 525ms = 1,9Hz
D35: Lorsque TMR0=10, il s'est écoulé 10x256us = 2560us = 2,6ms. | J35: PRESC=1 => TMR1L s'incrémente de 1 en 1us jusqu'a 255. TMR1H s'incremente de 1 en 256us, deborde toutes les 65ms
D36: Si entre temps le moteur a fait 1 tour, c'est qu'il tourne a 2,56ms par tour | J36: PRESC=2 => TMR1L s'incrémente de 1 en 2us jusqu'a 255. TMR1H s'incremente de 1 en 512us, deborde ici toutes les 131ms
D37: pour trouver des tours/mn: en 1mn (soit 60sec * 1000 = 60000ms) | J37: PRESC=4 => TMR1L s'incrémente de 1 en 4us jusqu'a 255. TMR1H s'incremente de 1 en 1024us, deborde ici toutes les 262ms
D38: 60000/2,56 = 23437 RPM | J38: PRESC=8 => TMR1L s'incrémente de 1 en 8us jusqu'a 255. TMR1H s'incremente de 1 en 2048us, deborde ici toutes les 525ms
J41: Quartz a 16MHz
J42: 4 cycles d'horloge par operation: Fosc/4 or 16MHz/4 = 4MHz
J43: - Prescaler sur 8 dans le registre T1CON | M43: (arrivé a 16bits 65535, TMR1 déborde et provoque INT)
J44: - period of the frequency input to Timer 1 : (toutes les 2us , TMR1 avance d'un cran)
J45: 1/(4MHz/8) = 2us
J46: This is the period of time for each count in Timer 1 i.e.
J47: 65536 * 2us = 131ms = 7,6Hz
J49: PRESC=1 => TMR1L s'incrémente de 1 en 0.25us jusqu'a 255. TMR1H s'incrémente de 1 en 64us et déborde en 16ms
J50: PRESC=2 => TMR1L s'incrémente de 1 en 0.5us jusqu'a 255. TMR1H s'incrémente de 1 en 128us et déborde en 32ms <===
J51: PRESC=4 => TMR1L s'incrémente de 1 en 1us jusqu'a 255. TMR1H s'incrémente de 1 en 256us et déborde en 65ms
J52: PRESC=8 => TMR1L s'incrémente de 1 en 2us jusqu'a 255. TMR1H s'incrémente de 1 en 512us et déborde en 131ms
J54: Calculator:
J55: http://eng-serve.com/pic/pic_timer.html
D56: Conversion BIN to HEX:
D58: Position | E58: 8 | F58: 7 | G58: 6 | H58: 5 | I58: 4 | J58: 3 | K58: 2 | L58: 1
D59: numero | E59: 7 | F59: 6 | G59: 5 | H59: 4 | I59: 3 | J59: 2 | K59: 1 | L59: 0
D60: Puissance | E60: 2^3 | F60: 2^2 | G60: 2^1 | H60: 2^0 | I60: 2^3 | J60: 2^2 | K60: 2^1 | L60: 2^0
D61: Valeur 2x4bits | E61: 8 | F61: 4 | G61: 2 | H61: 1 | I61: 8 | J61: 4 | K61: 2 | L61: 1
D62: Binaire | E62: 0 | F62: 1 | G62: 1 | H62: 0 | I62: 1 | J62: 0 | K62: 1 | L62: 1
D63: Valeur | E63: =E62*E61 -> 0 | F63: 4 | G63: 2 | H63: 0 | I63: 8 | J63: 0 | K63: 2 | L63: 1
D64: 2x4bits | E64: =E63+F63+G63+H63 -> 6 | I64: =I63+J63+K63+L63 -> 11
D65: Hexa 2x4bits | E65: =DEC2HEX(E64) -> 6 | I65: =DEC2HEX(I64) -> B
D66: Hexa | E66: =CONCATENATE(E65,I65) -> 6B

Sheet Calculs
A2: - Tant que pickup est bas (=0) 99% du temps, on met la valeur du TIMER0 dans la variable PERL (PERiode Low)
A3: - Chaque fois que TIMER0 provoque une INTerruption de debordement lorsqu'il arrive a 255, dans la routine d'interruption on incremente TMR0H (TIMER0 High)
A4: - Quand le pickup est haut (=1) (pulse) :
A5: - on memorise la valeur de TMR0H (Nbr de debordements de TIMER0), dans PERH (PERiode High)
A6: - et on memorise aussi la valeur du TIMER0 dans la variable PERL.
A7: - puis on RAZ les timers,
A9: - Ainsi la durée ecoulé entre 2 pickups est stockée dans PERL et PERH. Soit : (PERH x 255 ) + PERL
A11: Avec Q=4MHz, Prescaler = 256 et Preset = 0
A12: TIMER0 s'incremente toutes les 256us et deborde toutes les 256x256= 65536us = 65,5ms = 15,25Hz
A13: (utiliser: E:\Pic\Exemples\pic_calculations.xls)
A14: - donc [ (PERH * 255 ) + PERL ] * 65,5ms = durée entre 2 pulses.
A16: - Dans le soft:
A17: - on regarde si PERH est > a une certaine valeur, auquel cas le moteur tourne très lentement
A18: - on regarde si PERL est < a une certaine valeur, auquel cas le moteur tourne trop vite => arret des sparks pour limiter le regime
A19: - on regarde si PERL est < a une certaine valeur, auquel cas le moteur tourne très vite => spark immediat (sans avance)
A20: - entre ces 2 limites, on lit un tableau qui retourne un chiffre (delay) pour chacune des 95 valeurs de PERL
A21: - ce DELAY est le temps d'attente (nbr de boucles d'atttente) avant d'envoyer le spark
A23: Propriete de l'interruption:
F26: Liste deroulante
F27: selectionner la cellule
F28: donnees> validité des données> validite des donnees > afficher: liste
A38: Quand 4MHZ, a 15,4Hz = 924RPM, il faut 64935us pour faire un tour, donc TIMER0 a le temps d'aller jusqu’à 254 et de presque deborder:
A39: Quand 16MHZ, a 15,4Hz = 924RPM, il faut 64935us pour faire un tour, donc TIMER1-High (les débords de TMR1) a le temps d'aller jusqu’à 127

Sheet Dwell variable
D2: coef: | E2: DWELL = PERIODE * 50
B3: =Advance_curve!B8 -> TIMER1H count | D3: 50
B4: =Advance_curve!B9 -> 15 | C4: =$D$3*Advance_curve!B9 -> 750 | D4: µs
B5: =Advance_curve!B10 -> 16 | C5: =$D$3*Advance_curve!B10 -> 800
B6: =Advance_curve!B11 -> 17 | C6: =$D$3*Advance_curve!B11 -> 850
B7: =Advance_curve!B12 -> 18 | C7: =$D$3*Advance_curve!B12 -> 900
B8: =Advance_curve!B13 -> 19 | C8: =$D$3*Advance_curve!B13 -> 950
B9: =Advance_curve!B14 -> 20 | C9: =$D$3*Advance_curve!B14 -> 1000
B10: =Advance_curve!B15 -> 21 | C10: =$D$3*Advance_curve!B15 -> 1050
B11: =Advance_curve!B16 -> 22 | C11: =$D$3*Advance_curve!B16 -> 1100
B12: =Advance_curve!B17 -> 23 | C12: =$D$3*Advance_curve!B17 -> 1150
B13: =Advance_curve!B18 -> 24 | C13: =$D$3*Advance_curve!B18 -> 1200
B14: =Advance_curve!B19 -> 25 | C14: =$D$3*Advance_curve!B19 -> 1250
B15: =Advance_curve!B20 -> 26 | C15: =$D$3*Advance_curve!B20 -> 1300
B16: =Advance_curve!B21 -> 27 | C16: =$D$3*Advance_curve!B21 -> 1350
B17: =Advance_curve!B22 -> 28 | C17: =$D$3*Advance_curve!B22 -> 1400
B18: =Advance_curve!B23 -> 29 | C18: =$D$3*Advance_curve!B23 -> 1450
B19: =Advance_curve!B24 -> 30 | C19: =$D$3*Advance_curve!B24 -> 1500
B20: =Advance_curve!B25 -> 31 | C20: =$D$3*Advance_curve!B25 -> 1550
B21: =Advance_curve!B26 -> 32 | C21: =$D$3*Advance_curve!B26 -> 1600
B22: =Advance_curve!B27 -> 33 | C22: =$D$3*Advance_curve!B27 -> 1650
B23: =Advance_curve!B28 -> 34 | C23: =$D$3*Advance_curve!B28 -> 1700
B24: =Advance_curve!B29 -> 35 | C24: =$D$3*Advance_curve!B29 -> 1750
B25: =Advance_curve!B30 -> 36 | C25: =$D$3*Advance_curve!B30 -> 1800
B26: =Advance_curve!B31 -> 37 | C26: =$D$3*Advance_curve!B31 -> 1850
B27: =Advance_curve!B32 -> 38 | C27: =$D$3*Advance_curve!B32 -> 1900
B28: =Advance_curve!B33 -> 39 | C28: =$D$3*Advance_curve!B33 -> 1950
B29: =Advance_curve!B34 -> 40 | C29: =$D$3*Advance_curve!B34 -> 2000
B30: =Advance_curve!B35 -> 41 | C30: =$D$3*Advance_curve!B35 -> 2050
B31: =Advance_curve!B36 -> 42 | C31: =$D$3*Advance_curve!B36 -> 2100
B32: =Advance_curve!B37 -> 43 | C32: =$D$3*Advance_curve!B37 -> 2150
B33: =Advance_curve!B38 -> 44 | C33: =$D$3*Advance_curve!B38 -> 2200
B34: =Advance_curve!B39 -> 45 | C34: =$D$3*Advance_curve!B39 -> 2250
B35: =Advance_curve!B40 -> 46 | C35: =$D$3*Advance_curve!B40 -> 2300
B36: =Advance_curve!B41 -> 47 | C36: =$D$3*Advance_curve!B41 -> 2350
B37: =Advance_curve!B42 -> 48 | C37: =$D$3*Advance_curve!B42 -> 2400
B38: =Advance_curve!B43 -> 49 | C38: =$D$3*Advance_curve!B43 -> 2450
B39: =Advance_curve!B44 -> 50 | C39: =$D$3*Advance_curve!B44 -> 2500
B40: =Advance_curve!B45 -> 51 | C40: =$D$3*Advance_curve!B45 -> 2550
B41: =Advance_curve!B46 -> 52 | C41: =$D$3*Advance_curve!B46 -> 2600
B42: =Advance_curve!B47 -> 53 | C42: =$D$3*Advance_curve!B47 -> 2650
B43: =Advance_curve!B48 -> 54 | C43: =$D$3*Advance_curve!B48 -> 2700
B44: =Advance_curve!B49 -> 55 | C44: =$D$3*Advance_curve!B49 -> 2750
B45: =Advance_curve!B50 -> 56 | C45: =$D$3*Advance_curve!B50 -> 2800
B46: =Advance_curve!B51 -> 57 | C46: =$D$3*Advance_curve!B51 -> 2850
B47: =Advance_curve!B52 -> 58 | C47: =$D$3*Advance_curve!B52 -> 2900
B48: =Advance_curve!B53 -> 59 | C48: =$D$3*Advance_curve!B53 -> 2950
B49: =Advance_curve!B54 -> 60 | C49: =$D$3*Advance_curve!B54 -> 3000
B50: =Advance_curve!B55 -> 61 | C50: =$D$3*Advance_curve!B55 -> 3050
B51: =Advance_curve!B56 -> 62 | C51: =$D$3*Advance_curve!B56 -> 3100
B52: =Advance_curve!B57 -> 63 | C52: =$D$3*Advance_curve!B57 -> 3150
B53: =Advance_curve!B58 -> 64 | C53: =$D$3*Advance_curve!B58 -> 3200
B54: =Advance_curve!B59 -> 65 | C54: =$D$3*Advance_curve!B59 -> 3250
B55: =Advance_curve!B60 -> 66 | C55: =$D$3*Advance_curve!B60 -> 3300
B56: =Advance_curve!B61 -> 67 | C56: =$D$3*Advance_curve!B61 -> 3350
B57: =Advance_curve!B62 -> 68 | C57: =$D$3*Advance_curve!B62 -> 3400
B58: =Advance_curve!B63 -> 69 | C58: =$D$3*Advance_curve!B63 -> 3450
B59: =Advance_curve!B64 -> 70 | C59: =$D$3*Advance_curve!B64 -> 3500
B60: =Advance_curve!B65 -> 71 | C60: =$D$3*Advance_curve!B65 -> 3550
B61: =Advance_curve!B66 -> 72 | C61: =$D$3*Advance_curve!B66 -> 3600
B62: =Advance_curve!B67 -> 73 | C62: =$D$3*Advance_curve!B67 -> 3650
B63: =Advance_curve!B68 -> 74 | C63: =$D$3*Advance_curve!B68 -> 3700
B64: =Advance_curve!B69 -> 75 | C64: =$D$3*Advance_curve!B69 -> 3750
B65: =Advance_curve!B70 -> 76 | C65: =$D$3*Advance_curve!B70 -> 3800
B66: =Advance_curve!B71 -> 77 | C66: =$D$3*Advance_curve!B71 -> 3850
B67: =Advance_curve!B72 -> 78 | C67: =$D$3*Advance_curve!B72 -> 3900
B68: =Advance_curve!B73 -> 79 | C68: =$D$3*Advance_curve!B73 -> 3950
B69: =Advance_curve!B74 -> 80 | C69: =$D$3*Advance_curve!B74 -> 4000
B70: =Advance_curve!B75 -> 81 | C70: =$D$3*Advance_curve!B75 -> 4050
B71: =Advance_curve!B76 -> 82 | C71: =$D$3*Advance_curve!B76 -> 4100
B72: =Advance_curve!B77 -> 83 | C72: =$D$3*Advance_curve!B77 -> 4150
B73: =Advance_curve!B78 -> 84 | C73: =$D$3*Advance_curve!B78 -> 4200
B74: =Advance_curve!B79 -> 85 | C74: =$D$3*Advance_curve!B79 -> 4250
B75: =Advance_curve!B80 -> 86 | C75: =$D$3*Advance_curve!B80 -> 4300
B76: =Advance_curve!B81 -> 87 | C76: =$D$3*Advance_curve!B81 -> 4350
B77: =Advance_curve!B82 -> 88 | C77: =$D$3*Advance_curve!B82 -> 4400
B78: =Advance_curve!B83 -> 89 | C78: =$D$3*Advance_curve!B83 -> 4450
B79: =Advance_curve!B84 -> 90 | C79: =$D$3*Advance_curve!B84 -> 4500
B80: =Advance_curve!B85 -> 91 | C80: =$D$3*Advance_curve!B85 -> 4550
B81: =Advance_curve!B86 -> 92 | C81: =$D$3*Advance_curve!B86 -> 4600
B82: =Advance_curve!B87 -> 93 | C82: =$D$3*Advance_curve!B87 -> 4650
B83: =Advance_curve!B88 -> 94 | C83: =$D$3*Advance_curve!B88 -> 4700
B84: =Advance_curve!B89 -> 95 | C84: =$D$3*Advance_curve!B89 -> 4750
B85: =Advance_curve!B90 -> 96 | C85: =$D$3*Advance_curve!B90 -> 4800
B86: =Advance_curve!B91 -> 97 | C86: =$D$3*Advance_curve!B91 -> 4850
B87: =Advance_curve!B92 -> 98 | C87: =$D$3*Advance_curve!B92 -> 4900
B88: =Advance_curve!B93 -> 99 | C88: =$D$3*Advance_curve!B93 -> 4950
B89: =Advance_curve!B94 -> 100 | C89: =$D$3*Advance_curve!B94 -> 5000
B90: =Advance_curve!B95 -> 101 | C90: =$D$3*Advance_curve!B95 -> 5050
B91: =Advance_curve!B96 -> 102 | C91: =$D$3*Advance_curve!B96 -> 5100
B92: =Advance_curve!B97 -> 103 | C92: =$D$3*Advance_curve!B97 -> 5150
B93: =Advance_curve!B98 -> 104 | C93: =$D$3*Advance_curve!B98 -> 5200
B94: =Advance_curve!B99 -> 105 | C94: =$D$3*Advance_curve!B99 -> 5250
B95: =Advance_curve!B100 -> 106 | C95: =$D$3*Advance_curve!B100 -> 5300
B96: =Advance_curve!B101 -> 107 | C96: =$D$3*Advance_curve!B101 -> 5350
B97: =Advance_curve!B102 -> 108 | C97: =$D$3*Advance_curve!B102 -> 5400
B98: =Advance_curve!B103 -> 109 | C98: =$D$3*Advance_curve!B103 -> 5450

Sheet Version
A2: v7.9r13c2 | B2: [HARD] Correction RA1 forcé a 1, car pullup R5 sur PCB
A3: v7.9r13c3 | B3: [XLS] Valeur de dwell passe de 2 choix (500,1000) a 6 choix (500,1000,2000,3000,4000,5000).
A4: v7.9r14c0 | B4: [SOFT,XLS] Ajout d'une valeur de dwell "AUTO" pour lequel la durée de dwell est proportionnelle a PERIODE.
A5: v7.9r14c1 | B5: [SOFT] Code protection OFF
A6: v7.9r15c0 | B6: [XLS] La valeur d'avance affichée dans l'onglet "advance_at_lowRPM" ne prenait pas en compte la position du pickup, c'était donc une valeur RELATIVE, pas ABSOLUE. Multiplicateur peut descendre a 1 (soft OK)
B7: [SOFT] si JP2 a la masse alors PIC bypass la courbe d'avance et envoi spark dés que detection front descendant du pickup
B8: [SOFT] RB3 (ex TP2) n'était pas forcé en OUTPUT
B9: [HARD] Suppression TP2 inutile
B10: [HARD] Reduction R7 de 330 a 180 (Sinon ne declenche pas les SCR de type BTA).
B11: [HARD] Suppression C9-100n car courant d'appel dépasse Imax du PIC
A12: v7.9r16c0 | B12: [XLS] La valeur d'avance affichée dans l'onglet "advance_at_lowRPM" était fausse.
B13: [SOFT] boucles d'attente pkp haut et bas en ASM: Precision x10 !!
B14: [XLS] Ajout documentation onglet README
A15: v7.9r16c1 | B15: [XLS] Tuning: a low RPM, le PIC attend 4us x PERIODE mais en vrai bcl dure plus de 4us, du coup il y a un offset de 5deg (20° affiché et 15° reels) pour simplifier correction: la valeur delay (I1) passe de 4 a 4.4
B16: [SOFT] Calibration de la boucle 40us
A17: v7.9r17c0 | B17: [XLS] Ajout d'un Rev Limiter a l'adresse Eprom 121 si swich JP2 a la masse
B18: [SOFT] JP2 (ex Bypass curve) est utilisé pour activer une limitation de RPM inferieur au maxi et stocké en @121 de l'eprom (Scooter légal)
A19: v7.9r17c1 | B19: [XLS] Renommage en accord avec code. Ajout RPM mini dans le titre onglet low_rpm
A20: v7.9r18c0 | B20: [XLS] Ajout d'un délai at Kick Start selectionnable par le user
B21: [SOFT] Si TMR1 déborde, PIC attend une pause d'une durée fixe VLRPM qui a été définie par le user et écrite en eprom. Sinon spark immediate entre 0 et 480RPM car TMR1 = 0 = croit que RPM élévés
A22: v7.9r19c0 | B22: [XLS] Ajout step 200us permet de positionner le pkp jusqu’à 360° btdc
B23: [SOFT] Ajout step 200us permet de positionner le pkp jusqu’à 360° btdc
B24: [SOFT] Si TMR1 déborde, PIC attend une pause de Nbr débordements * VLRPM qui a été définie par le user et écrite en eprom. Sinon spark immediate entre 0 et 480RPM car TMR1 = 0 = croit que RPM élévés
A25: v7.9r20c0 | B25: [SOFT] Suppresion JP1: autospark et RB3 output PWM
B26: [SOFT] RB3 devient RevCoil, RB5 devient sortie Tacho, meme signal que RA2
B27: [SOFT] Lecture de JP2 (rev limit) dés que pkp repasse a 1, donc possible de changer rpm limit pendant la marche
B28: [XLS] Modif commentaire dwell, Renommage en ACCDI_v79r20c0 (au lieu curve_adjust_16f628_xxxx)
B29: [XLS] Ajout onglet EPROM16 pour configurer 16F628 directement avec pickit3 sans besoin de icprog
B30: [HARD] option tachometer avec PIC 12F629
A31: v7.9r20c1 | B31: [XLS] Modif choix 2,4 stk wasted spark
B32: [XLS] Correction. Le temps en us pour 1° changeait selon 2 ou 4tps ! (faux en 4)
B33: [XLS] Portage sur 16F1827: reduction temps incompressible de 71 a 18us
A34: v7.9r20c2 | B34: [XLS] renommage en v79r20c1 avec suffixe 16F1847
B35: [XLS] remplacement onglet EEPROM8 par EEPROM16
B36: [XLS] Augmentation du nombre de trial de 20 a 50
B37: [XLS] Ajout d'une cellule C11 dans VLRPM pour ajuster l'avance a ces regimes
B38: [XLS] Modif 4MHz dans VLRPM
A39: v7.9r21c0 | B39: [SOFT] utilisation de INT sur RB4
B40: [XLS] pas de modification
A41: v7.9r21c1 | B41: [XLS] correction du nbr de debord max de TMR1 (40/prescaler au lieu de 5 fixe)
A42: v7.9r21c2 | B42: [XLS] Le hash calculé dans Eeprom16 ne sert a rien avec PICkit3 qui ne le lit pas. Mais MPASM le lirait…
B43: [XLS] Correction du Hash, il fallait additionner toute la ligne donc aussi 10h=16d qui est le nbr de bits
B44: [XLS] Correction dans eeprom16 , arrondi de valeur eeprom sinon affichage arrondi mais valeur decimal du coup checksum faux car somme fausse
B45: [XLS] Correction du hash, il n'y avait pas besoin de corriger la valeur de checksum
B46: [SOFT] Free trial passe de 50 a 200, Ne clignote plus
B47: [XLS] Free trial passe de 50 a 200
B48: [XLS] macro VLRPM utilise clock de advance_curve
A49: v7.9r21c3 | B49: [XLS] ERROR N°1: La derniere ligne de "advance curve" a TMR1max correspond par ex a 123 = 950rpm/16Hz/62ms mais en vrai le PIC n'arrive ici qu'a 32Hz/31ms
B50: car 16F1827 a 16MHz compte + vite et PERIODE arrive a 123 en 31ms (et pas en 62ms): Correction calcul RPM dans advance_curve
B51: ERROR N°2: dans adv_low_rpm a 10Hz/600rpm il est censé y avoir délai: 10ms mais 50ms en vrai !!
B52: Correction dans le calcul de la valeur de TMR1h qui ne tenait pas compte de la clock!
B53: [XLS] Selection nbr d'aimants sur rotor 1 or 2. Si 2 aimants on ignore la 2em pulse (desactivé)
A54: v7.9r22c0 | B54: [SOFT] 16F1827 a plus de RAM que 16F628 : Augmentation de 96 (max pour 1 variable) a 2x80 valeurs d'avance en RAM (max pour 2 variables)
B55: [XLS] 16F1827 a plus de RAM que 16F628 : Augmentation de 96 a 2x80 valeurs d'avance en RAM (onglets: eeprom16, adv_low_rpm, adv_curve,calcul,formule)
B56: [XLS] Ajout cell M40 pour ajuster le RPM de bascule de l'onglet "adv_curve" a "adv_low_rpm" en cas de warning
B57: [XLS] Correction limitation de RPM par JP2 (ne fonctionnait plus depuis 16F1827)
B58: [XLS] activation choix LED au départ. Ajout choix d'attendre un 1er tour moteur pour mesurer RPM ou pas
B59: [XLS] correction: il fallait soustraire l'hysteresis plus 200us de délai entre détection pickup et debut compte a rebours
B60: [SOFT] Calibration des boucles 20, 40us
B61: [SOFT,XLS] Suppression du choix délai 200us inutile
A62: v7.9r23c1 | B62: [SOFT,XLS] pour les 80 premieres valeurs d'avance RETARDL[] le step est selectionnable par user 20,40,100 mais pour valeurs RPM faible (RETARDH) c'est forcé a 100us pour eviter warning en haut et en bas
B63: [XLS] Correction, la colonne FRQ devait etre calculée d'apres TMR1 et non d'apres RPM. Maintenant c'est logique si on change 2tps ou 4tps
A64: v7.9r24c0 | B64: [XLS] Meme xls pour ACCDI et DCCDI, Ajout cellule N28 pour calibrer le délai "I4" en fct du temps de calcul du firmware (calibré en DCCDI en 028. RAF: ACCDI) | L64: 78
B65: [XLS] Desormais meme XLS pour AC et DCCDI
B66: [SOFT] Correction: Si pickup arreté a 1 durant 1sec, ne redemarrait plus car MEMTMR1DEB constamment refixé par INT
B67: [SOFT] Correction: il y avait une 2em spark de 0 jusqu'a 10Hz sauf de 7 a 8Hz (IOC n'etait pas a 0 avant boucle IOC)
B68: [SOFT] modif FW DCCDI 100us est trop gros a HIGH rev et 40us trop petit a LOW rev: RETARDL[79] utilise une valeur STEP selectionnable de 20 a 40us et RETARDH[79] utilise une valeur STEP forcée a 100us
A69: v7.9r25c0 | B69: [SOFT,XLS] Simplification a low RPM, un seul onglet d'avance plate ajustable car on tient compte des débordements de TMR1H
B70: [XLS] Correction formule du temps pour 1degré dans "lowrpm" pour que valeurs soient juste aussi en mode "4tps no wasted spark"
B71: [XLS] Correction: il fallait soustraire l'hysteresis de 200us plus le temps de calcul dans "LowRPM" aussi
B72: [XLS] Correction: a lowrpm et si TMRDEB = 0 alors le temps de calcul dans la bcl de decrement periode est 10µs plus longue. (le rajouter a I2 dans cell W9 ou [fait] le soustraire dans la bcl FC
B73: [SOFT] Correction: a lowrpm soustraire le temps de calcul dans la bcl FC VLRPM -10

Sheet Excel
A3: Conversion de valeurs: | C3: =SI(I2=2;2;(SI(I2=3;3;(SI(I2=4;4;(SI(I2=5;5;(SI(I2=6;6)))))))))
A5: Liste deroulante: | C5: Donnees> Validite des donnees
A8: les graphes n'affichent pas la valeur #N/A , utiliser #N/A pour faire disparaitre les points du graphe
A10: Pour afficher les liens d'une cellule: selectionner la > Formule > Reperer les antécédents/dependants
